{"text_format":"1","workbook":"xlsx","n_sheets":3,"sheets":["Пояснение","Цена","Оборудование кот №1"],"not_rendered":{"charts":0,"images":0,"macros":1,"external_links":0,"defined_names":1080,"comments":0,"pivot_tables":0},"unopened":[],"bounds":{"document_bytes":16777216,"sheet_cells":100000,"rows_first":2000,"rows_last":500,"rows_between":2000,"halvings":0,"cell_chars":16384,"cell_head_chars":4096},"cells_cut":0,"cells_raw":0,"read":"whole","date_system":"1900"}

{"sheet":"Пояснение","index":0,"n_rows":1,"n_cols":1,"rows_kept":1,"cut":false,"hidden":false,"merged":[]}
["Нумерованный писок во вкладке \"цена\" заменятся данные во вкладках \"оборудование\", коричневые столбцы. Там организован ввод по принципу проверки данных но это не очень удобно"]

{"sheet":"Цена","index":1,"n_rows":1101,"n_cols":3,"rows_kept":1101,"cut":false,"hidden":false,"merged":[]}
[null,"Наименование","Цена"]
[1,"Аварийное_освещение",1110]
[2,"Авт.выкл_АП_50Б_3МТ_16А",3300]
[3,"Авт.выкл_ВА_4729_2П_6А_С",370]
[4,"Авт.выкл_ВА_4729_3П_50А_С",700]
[5,"Авт.выкл_ВА_4763_3_16А",810]
[6,"Автомат_ВА4763_3п_40А",900]
[7,"Автоматический_выключатель_GENERICA_1P_10А_45КА_тип_С",200]
[8,"Аппарат_сварочный_инверторный_Ресанта_250",12500]
[9,"Аптечка_первой_помощи_работникам_ФЭСТ_пластиковый_чемоданчик",1200]
[10,"Ареометр_для_тосола_и_электрлита_в_тубе",400]
[11,"Арматура_10",45]
[12,"Арматура_12",58]
[13,"Арматура_8",30]
[14,"Балка_25_Б1_12м",3000]
[15,"Батарея_аккумуляторная_стартерная_свинцовокислотная_FireBall_190_Ач",14000]
[16,"Бензопила_HUTER",12000]
[17,"Бетоносмеситель_БМ160Т",30000]
[18,"Битумаст_мастика_гидроизоляционная_215л",3000]
[19,"Блок_контактный_1_з_LAY_01",150]
[20,"Блок_контактный_1р_LAY10",150]
[21,"Блок_монтажный_с_крюком_1т",2000]
[22,"Блок_шкивовый_однорольный_с_крюком_05_т",2500]
[23,"Блок_шкивовый_однорольный_с_крюком_и_откидной_щекой_2Т",3500]
[24,"Бобышка_для_термометра_М27х2х50",200]
[25,"Бокорезы_130_мм",350]
[26,"Бокс_на_28_модуля",800]
[27,"Бокс_ЩРНП10_модулейпластик",1000]
[28,"Бокс_ЩРНП6_модулей_IP40",800]
[29,"Болт_анкерный_8х60",19]
[30,"Болт_анкерный_М10_12х80_с_шестигранной_головкой",37]
[31,"Болт_анкерный_с_гайкой_М10_12х150_",50]
[32,"Болт_анкерный_с_гайкой_М6_8х125мм",30]
[33,"Болт_анкерный_с_гайкой_М8_10х77",23]
[34,"Болт_анкерный_с_гайкой_М8_10х75",23]
[35,"Болт_М12х50",30]
[36,"Болт_М10х25",10]
[37,"Болт_М10х40",16]
[38,"Болт_М10х60",20]
[39,"Болт_М12х60",30]
[40,"Болт_М12х90",35]
[41,"Болт_М14х40",25]
[42,"Болт_М14х50",30]
[43,"Болт_М14х70",40]
[44,"Болт_М14х80",45]
[45,"Болт_М14х90",55]
[46,"Болт_М16х10",65]
[47,"Болт_М16х140",95]
[48,"Болт_М16х50",70]
[49,"Болт_М16х70",80]
[50,"Болт_М16х80",90]
[51,"Болт_М16х90",90]
[52,"Болт_М16х120",100]
[53,"Болт_М18х120",115]
[54,"Болт_М18х130",120]
[55,"Болт_М18х70",80]
[56,"Болт_М18х80",85]
[57,"Болт_М20х100",120]
[58,"Болт_М20х110",125]
[59,"Болт_М20х140",145]
[60,"Болт_М20х80",105]
[61,"Болт_М6х50",8]
[62,"Болт_М8х25",10]
[63,"Болт_М8х30",10]
[64,"Болт_М8х50",15]
[65,"Болт_М8х70",15]
[66,"Болт_шестигранный_М_10х30",50]
[67,"Болт_шестигранный_М_10х50",80]
[68,"Болт_шестигранный_М_12х100",120]
[69,"Бумага_наждачная_230х280мм",70]
[70,"Бур_6х100_160_мм",150]
[71,"Бур_д20",1300]
[72,"Валик_малярный",250]
[73,"Ванночка_для_краски_330х350мм",160]
[74,"ВД40_200мл",400]
[75,"Ведро_оцинкованное_9л",350]
[76,"Ведро_пожарное_конусное",230]
[77,"Веник_сорго_высш._сорт",295]
[78,"Вентиль_чугунный_запорный_муфтовый_Ду32",540]
[79,"Вентилятор_ВОВ_160_S.М468_УЗУ2_пропилен_черн.",2500]
[80,"Вентилятор_ВР_28046_№25_30_кВт3000_об_в_мин_Левый"]
[81,"Ветошь_кг",280]
[82,"Вилка_кабельная_1025",250]
[83,"Вилка_каучук_16А_2РЕ_IP44",110]
[84,"Вилка_нагрузочная_для_проверки_АКБ_Вымпел_100_200А",2400]
[85,"Вилка_с_кольцом_с_з_черн.16А_250В_AVK1630",115]
[86,"Водонагреватель_Edisson_30_V_накопительный_30_л",9000]
[87,"Водосчетчик_СВК15",1200]
[88,"Водосчетчик_СТВХ50_Ру_16",18500]
[89,"Воздухоотводчик_автомат.Ду15",700]
[90,"Втулка_коническая_тапербуш",800]
[91,"Втулка_под_фланец_0090мм_ПЭ",600]
[92,"Втулка_под_фланец_0110мм_ПЭ",700]
[93,"Втулка_под_фланецлитая_полиэт.100_11_Д063",300]
[94,"Выключатель_автомат_ВА4729_3n_63А_хк_С_45_кА",1600]
[95,"Выключатель_автоматический_2п_16А",320]
[96,"Выключатель_автоматический_модульный_Зп_С_50А_4.5КА_ВА4729",1200]
[97,"Выключатель_концевой_KZ_8104_5А",470]
[98,"Выключатель_концевой_KZ_8108",470]
[99,"Выключатель_концевой_ВК300_16А_660Впер_440Впост",1900]
[100,"Выключатель_ОП1П",75]
[101,"Выключатель_ОП2П_",90]
[102,"Газ_Турист",140]
[103,"Гайка_М_6",7]
[104,"Гайка_М_8",13]
[105,"Гайка_М10_",13]
[106,"Гайка_М10_шестигр._самоконтрящаяся",10]
[107,"Гайка_М12",18]
[108,"Гайка_М14",15]
[109,"Гайка_М16",15]
[110,"Гайка_М18",18]
[111,"Гайка_М20",25]
[112,"Гайка_М24",35]
[113,"Гайка_шестигранная_цинкМ10",8]
[114,"Гайка_шестигранная_цинкМ12",15]
[115,"Гайковерт_механический",5000]
[116,"Гвозди_L_70",150]
[117,"Гвозди_L_80",150]
[118,"Гвозди_L_90",150]
[119,"Гвозди_L100",150]
[120,"Гвозди_L120",150]
[121,"Гвозди_L150",150]
[122,"Гвозди_L200_мм",150]
[123,"Гвозди_шиферные_5х120мм",290]
[124,"Гвоздодер",600]
[125,"Гвоздодер_усиленный_900х29х15",1500]
[126,"Герметик_силиконовый_180мл",200]
[127,"Герметик_черный_85_гр",450]
[128,"Гидроаккумулятор_EcWATER_Г80_л_горизонтальный_для_систем_водоснабжения",7800]
[129,"Гидроаккумулятор_в_сборе_с_автоматикой_100литров",20000]
[130,"Гильза_ГМЛ_16мм",50]
[131,"Гильза_ГМЛ_25луж",80]
[132,"Гильза_ГМЛ_6мм",20]
[133,"Гильза_ГМЛ10мм",40]
[134,"Головка_36мм_12ти_гран_3_4",500]
[135,"Головка_соеденительная_рукавная_ГР50",200]
[136,"Головкабита_на_шуруповерт_магнитная_8ммх50",200]
[137,"Горелка_газовая",800]
[138,"Греющий_кабель_саморегулирующийся_10_Вт_м_с_сальником_готовый_комплект_30м",6800]
[139,"Гровер_М14",3]
[140,"Держатель_массы_латунный",1000]
[141,"Держательклипса_для_труб_Д16_",10]
[142,"Держательклипса_для_труб_Д20мм",15]
[143,"Держательклипса_для_труб_Д25мм",15]
[144,"Держательклипса_для_труб_Д32мм",19]
[145,"Держательклипса_для_труб_Д63мм",35]
[146,"Динрейка_11см_оцинкован.",205]
[147,"Динрейка_25см_",100]
[148,"Диск_зачистной_по_металлу_230",210]
[149,"Диск_отрезной_по_металлу_125",105]
[150,"ДНО_к_кольцу_15м"]
[151,"ДНО_к_кольцу_2м"]
[152,"Домкрат_реечный_СибТаль_модель_ДР_5т",19000]
[153,"Дрельшуруповерт_сетевая_Маkitа_НР0300",10000]
[154,"Дюбельгвоздь_45х40_с_шайбой_для_монтажного_пистолета",20]
[155,"Дюбельгвоздь_45х50_с_шайбой_для_монтажного_пистолета",30]
[156,"Дюбельгвоздь_5х40",10]
[157,"Дюбельгвоздь_6х40",18]
[158,"Дюбельгвоздь_6х60",18]
[159,"Дюбельгвоздь_6х80",18]
[160,"Ерш_д.50х100х160_сталь_03_очистка_котлов_и_теплообменников",3500]
[161,"Ерш_д40х100х160_сталь_030_посадка_1_2",3000]
[162,"Ерш_с_резьбой_3_4х27_мм_стальной",65]
[163,"Заглушка_18х1_AEZ",100]
[164,"Заглушка_для_ЗНИ_25мм2_сер",30]
[165,"Заглушка_НР_6ти_гранная_ДУ_25_1_дюйм",700]
[166,"Заглушка0063_мм_ПЭ100_SDR11_эл_св",900]
[167,"Зажим_анкерный_РА_25",200]
[168,"Зажим_анкерный_СА_1500",500]
[169,"Зажим_для_троса_3мм",15]
[170,"Зажим_для_троса_6мм",20]
[171,"Зажим_для_троса_8мм",30]
[172,"Зажим_ответвительный_изолированный_ЗОИ_2595_2595",450]
[173,"Замок_навесной",400]
[174,"Затвор_поворотный_дисковый_Ду50",2500]
[175,"Затвор_поворотный_дисковый_Ду100",5000]
[176,"Затвор_поворотный_дисковый_Ду150",7000]
[177,"Затвор_поворотный_дисковый_Ду80",3500]
[178,"Звено_С16В1"]
[179,"Звено_СПРД3805600"]
[180,"Звено_СТРД3805600_с_ухом"]
[181,"Звонок_громкого_боя_МЗМ1_220В_50Гц",2200]
[182,"Знак_аварийной_остановки"]
[183,"Знак_дорожный_Ведутся_ремонтные_работы"]
[184,"Знак_дорожный_Движение_запрещено"]
[185,"Знак_дорожный_Конец_зоны_всех_ограниячений"]
[186,"Знак_дорожный_Обгон_запрещен"]
[187,"Знак_дорожный_Объезд_препедствия_слева"]
[188,"Знак_дорожный_Ограничение_максимальной_скорости_20км_ч"]
[189,"Знак_дорожный_Объезд_препятствия_слева_и_справа"]
[190,"Зубило_слесарное_16х160мм",500]
[191,"Зубило_слесарное_20х200мм",700]
[192,"Известь_крупная_4кг",130]
[193,"Изовер_2х50х1200х6250_15м2_075м3"]
[194,"Изолента_Terminator_синяя_19мм_183м",160]
[195,"Изолента_ПВХ_19мм",80]
[196,"Изолента_цветная_набор_10_штук",300]
[197,"Кабель_ВВГ_нг_2х25",95]
[198,"Кабель_ВВГ_нг_4х4",100]
[199,"Кабель_ВВГ_Пнг_LS_2х15",60]
[200,"Кабель_ВВГПнгАLS_3х25",140]
[201,"Кабель_ВВГнг_3х4",250]
[202,"Кабель_ВВГнг_LS_3х10",550]
[203,"Кабель_ВВГнгLS_2х1.5",70]
[204,"Кабель_греющий_саморегулирующий_в_трубу",1000]
[205,"Кабель_греющий_саморегулирующий_на_трубу",1300]
[206,"Кабель_КГ_2х25_мм",130]
[207,"Кабель_КГ_3х15_м",120]
[208,"Кабель_КГХЛ_5х15",190]
[209,"Кабель_КГтпХЛ_3х25_мм1х15038",200]
[210,"Кабель_КГтпХЛ_4х15",200]
[211,"Кабель_КГтпХЛ_4х4",320]
[212,"Кабель_КГтпХЛ_морозостойкий_2х075мм",350]
[213,"Кабель_КГХЛ_1х10мм",215]
[214,"Кабель_КГХЛ_1х16_мм",350]
[215,"Кабель_КГХЛ_2х15_мм",90]
[216,"Кабель_КГХЛ_2х25_мм",135]
[217,"Кабель_КГХЛ_3х101х6",800]
[218,"Кабель_КГХЛ_3х161х10_мм",220]
[219,"Кабель_КГХЛ_4х25_мм",250]
[220,"Кабель_КГХЛ_4х6_мм",500]
[221,"Кабель_резин._КГХЛ_2х075",55]
[222,"Кабель_силовой_ВВГПнг_2х25_",100]
[223,"кабель_силовой_КГтпХЛ_4х250660_ТРТС",205]
[224,"Каменная_вата_ПТЭ50_1000х500х50",140]
[225,"Катушка_МИС3100_380Вт",1600]
[226,"Трос_стальной_62",200]
[227,"Трос_стальной_78",300]
[228,"Трос_стальной_83ГН",300]
[229,"Трос_стальной_96Г",350]
[230,"Каретка_ТШПм20_в_сборе"]
[231,"Картон_асбестовый_КАОН1_10мм_лист_08х1м",950]
[232,"Картон_асбестовый_КАОН1_5мм_лист_08х1м",550]
[233,"Кельма_трапецевидная_160мм",350]
[234,"Кирпич_огнеупорный_ШБ5_385_шт",160]
[235,"Кислород_40_л"]
[236,"Кисть_120х12мм",300]
[237,"Кисть_50х12мм",100]
[238,"Кисть_70х12мм",140]
[239,"Кисть_макловица_ракля_50х150",400]
[240,"Кисть_75_мм",220]
[241,"Кистьракля_30х120мм_натур_щетина",300]
[242,"Клапан_балансировочный_ручной_Ду32",10000]
[243,"Клапан_балансировочный_ручной_Ду_40",13100]
[244,"Клапан_балансировочный_ручной_Ду25",6200]
[245,"Клапан_балансировочный_ручной_Ду50",19500]
[246,"Клапан_впрыска_реагента_Etatron_до_20_л_ч_3_8",2000]
[247,"Клапан_запорныйпожарныйлатунныйпрямой_Ду50",3000]
[248,"Клапан_обратный_2ух_створч.межфланц._Ду125",2500]
[249,"Клапан_обратный_пружинный_Ду32",800]
[250,"Клапан_обратный_пружинный_Ду15",700]
[251,"Клапан_обратный_пружинный_Ду25",600]
[252,"Клапан_обратный_пружинный_Ду50",1500]
[253,"Клапан_предохранительный_латунный_угловой_Ду15",1500]
[254,"Клапан_предохранительный_латунный_угловой_Ду50",15000]
[255,"Клапан_предохранительный_пружинный_с_ручн.подрыврм_фланцевый_Ру16_Ду_50",29000]
[256,"Клапан_редукционный"]
[257,"Клемма_WAGO_222413",60]
[258,"Клемма_заземления_для_сварочного_аппарата_500А",500]
[259,"Клемма_СМК412_00825мм",50]
[260,"Клеммная_колодка_12_секционная_6_мм_6А_SBEtb0606",700]
[261,"Ключ_для_компрессионных_фитингов_75110",1620]
[262,"Ключ_разводной_усиленный_150_мм_зев_до_24_мм",1000]
[263,"Ключ_рожковый_32х36",900]
[264,"Ключ_трубный_рычажный_№1",1200]
[265,"Ключ_трубный_рычажный_№3",2000]
[266,"Ключ_трубный_рычажный_№2",1500]
[267,"Ключ_трубный_рычажный_№4",3000]
[268,"Кнопка_SB7_стоп_красная",300]
[269,"Кнопка_АРВВ22_ПускСтоп_овальная_220В",650]
[270,"Кнопка_КЕ_011_2_красн.1з1рцил.IP40",150]
[271,"Кнопка_КЕ_011_2_черн.1з1рцил.IP40",150]
[272,"Колесо_2500SR_литое_д=330_170кг_ось=20мм",1000]
[273,"Колесо_б_г_полиуретан_поворот_160мм",1300]
[274,"Колесо_к_тачке_3.008_ось=15мм",1300]
[275,"Колодка_клеммная_ЗА_12_полюсов_4_мм2",230]
[276,"Колодка_клеммная_ЗВИ5_154мм2_12пар_ИЭК",50]
[277,"Кольцо_колодезное_159_Dвнутр_15м.Н089м_Dнаруж168м"]
[278,"Компенсатор_AYVAZ_DN100_осевой_ход_50мм5_45_под_приварку",21000]
[279,"Компенсатор_AYVAZ_DN50_осевой_ход_50мм5_45_под_приварку",9500]
[280,"Компенсатор_в_кожухе_AYVAZ_DN65_осевой_ход_50мм15_35_под_приварку",15000]
[281,"Комплект_для_заделки_кабеля",410]
[282,"Комплект_крепления_лента_скрепа_КЛС1_201",200]
[283,"Комплект_теплоизоляции_стыка_159_250ППУПЭ"]
[284,"Комплект_теплоизоляции_стыка_32_110ППУПЭ"]
[285,"Комплект_термопреобразователей_КТСПН",6000]
[286,"Комплект:_ведущая_звездочка_корзина_цепи_с_подшипникомсцеплениешайба_стопорное_кольцо_для_б_пилы",450]
[287,"Конденсатор_450В",500]
[288,"Контактор_КМИ11810_18А",900]
[289,"Контактор_КМИ22510_25_А",1500]
[290,"Контактор_КМИе_35012_50А_400В_АС3",4000]
[291,"Контактор_КМИе11810_18А_230В_АС3_1НО_IEK",1200]
[292,"Контактор_КМЭ_40А_380В_",3200]
[293,"Контактор_электромагнитный_ПМЛ1501_УХЛ4_Б_380В_50Гц_2р_10А",2000]
[294,"Контргайка_Ду15",20]
[295,"Контргайка_Ду_20",30]
[296,"Контргайка_Ду25",40]
[297,"Контргайка_Ду32",60]
[298,"Контргайка_Ду40",80]
[299,"Контргайка_Ду50",100]
[300,"Коробка_КМ_41235_распаячная_о_п_85х85х40",100]
[301,"Коробка_разветвительная_80х80х50",100]
[302,"Коробка_распред._100х100х50_мм",160]
[303,"Коронка_биметаллическая_60мм",1350]
[304,"Коронка_биметаллическая_64мм",1450]
[305,"Коронка_биметаллическая_46_мм",1200]
[306,"Корпус_300х150х146",3500]
[307,"Кран_водозаборный_шаровой_Ду15_с_наконечником_под_шланг",500]
[308,"Кран_латунный_для_установки_манометра_Ду15",450]
[309,"Кран_п_п_нак._гайка_25х3_4_угловой",500]
[310,"Кран_шаровой_LD_КШЦП_из_стали_20_Ду20",1400]
[311,"Кран_шаровой_латунный_TEMPER_Ду20.ВН.Б",650]
[312,"Кран_шаровой_латунный_TEMPER_Ду20.ВВ.Б",550]
[313,"Кран_шаровой_латунный_TEMPER_Ду32.ВВ.Б",1350]
[314,"Кран_шаровой_латунный_TEMPER_Ду50_ВВ.Р",3200]
[315,"Кран_шаровой_латунный_TEMPER_Ду50_В.Н.Р",3500]
[316,"Кран_шаровый_1_2_водоразборный",620]
[317,"Кран_шаровый_11_4_ручка_рычаг",1500]
[318,"Кран_шаровый_3_4_водоразборный",900]
[319,"Кран_шаровый_латунный_TEMPER_Ду32_ВН.Б",1500]
[320,"Кран_шаровый_латунный_TEMPER_Ду15.ВВ.Р_никельРу40",350]
[321,"Кран_шаровый_латунный_TEMPER_Ду15.ВН.Б",350]
[322,"Кран_шаровый_латунный_TEMPER_Ду25.ВВ.Р",900]
[323,"Кран_шаровый_латунный_TEMPER_Ду25.ВН.Б",1000]
[324,"Кран_шаровый_никель_бабочка_Ду15",500]
[325,"Кран_шаровый_никель_бабочка_Ду25",900]
[326,"Кран_шаровый_никель_рычаг._Ду40",3000]
[327,"Кран_шаровый_никель_рычаг._Ду50",5000]
[328,"Кран_шаровый_стальной_LD_КШЦП_Ду32",1500]
[329,"Кран_шаровый_стальной_LD_КШЦП_Ду40",1]
[330,"Кран_шаровый_стальной_LD_КЩЦМ_Ду15",1400]
[331,"Кран_шаровый_стальной_LD_КЩЦМ_Ду25",1600]
[332,"Кран_шаровый_стальной_LD_КЩЦП_Ду15",1300]
[333,"Кран_шаровый_стальной_LD_КЩЦП_Ду25",1500]
[334,"Кран_шаровый_стальной_LD_КЩЦП_Ду50",1]
[335,"Кран_шаровый_стальной_LD_КЩЦП_Ду65",1]
[336,"Кран_шаровый_стальной_LD_КЩЦФ_Ду100",1]
[337,"Кран_шаровый_стальной_LD_КЩЦФ_Ду125",1]
[338,"Кран_шаровый_стальной_LD_КЩЦФ_Ду150",1]
[339,"Кран_шаровый_стальной_LD_КЩЦФ_Ду200",1]
[340,"Кран_шаровый_стальной_LD_КЩЦФ_Ду80",1]
[341,"Кран_шаровый_стальной_LD_КЩЦФ_Ду50",1]
[342,"Краник_бака_бензогенератора_М16",1]
[343,"Краска_ПФ115_желтая_18кг",1]
[344,"Краска_ПФ115_красная_27кг",1]
[345,"Краска_ПФ115_черная_27кг",1]
[346,"Крепеж_клипса_d_20мм",1]
[347,"Крепление_фасадное_для_СИП",1]
[348,"Кронштейн_анкерный_КАМ4000",1]
[349,"Кронштейн_СА_2000",1]
[350,"Круг_16_12М_ст3",1]
[351,"Круг_24_Ст_3",1]
[352,"Круг_алмазный_230х18х22_мм",1]
[353,"Круг_зачистной_115х6х22мм",1]
[354,"Круг_зачистной_125х60х22_НИ",1]
[355,"Круг_зачистной_по_металлу_125х60х22мм",1]
[356,"Круг_зачистной_по_металлу_150х6х22мм",1]
[357,"Круг_зачистной_по_металлу_230х60х22мм",1]
[358,"Круг_отрезной_1502022",1]
[359,"Круг_отрезной_по_металлу_125",1]
[360,"Круг_отрезной_по_металлу_150х25х22",1]
[361,"Круг_отрезной_по_металлу_180х25",1]
[362,"Круг_отрезной_по_металлу_230х25",1]
[363,"Круг_шлифовальный_200х25х32",1]
[364,"Крышка_на_колод.кольцо_15м_ПП15",1]
[365,"Крышка_на_колод.кольцо_2м_ПП20",1]
[366,"Кувалда_3_кг_с_ручкой",1]
[367,"Лампа_AD_22DS_LED_d22мм_желтая",1]
[368,"Лампа_AD_22DS_LED_d22мм_зеленая",1]
[369,"Лампа_AD_22DS_LED_d22мм_красный",1]
[370,"Лампа_AD22DSLEDматрица_d22мм_красный_24В_ИЭК",1]
[371,"Лампа_LED_МОPRO_10Вт_Е27",1]
[372,"Лампа_LED_Е27_LV_CLA75_10W_830",1]
[373,"Лампа_ДРЛ250",1]
[374,"Лампа_светодиодная_LED_11вт_Е27",1]
[375,"Лампа_светодиодная_LED_60вт_Е27",1]
[376,"Лампа_светодиодная_LED_80_Вт_230В_Е27_6500К",1]
[377,"Лампа_светодиодная_Е27_10Вт",1]
[378,"Лампа_светодиодная_Е27_12_W",1]
[379,"Лампа_сд_низковольтная_LED_7.5Вт",1]
[380,"Лен_сантехнический_200_г",1]
[381,"Лента_армированная_50х50",1]
[382,"Лента_клейкая_50ммх50м_серая",1]
[383,"Лента_сигнальная_75ммх200м",1]
[384,"Лента_ФУМ_15м",1]
[385,"Лестница_3х10_секционная_алюм.",1]
[386,"Лист_г_к_10_мм_",1]
[387,"Лист_горячекатаный_30мм",1]
[388,"Лист_горячекатаный_40мм",1]
[389,"Лист_горячекатаный_80мм",1]
[390,"Лист_горячетканый_20мм",1]
[391,"Лист_горячетканый_50мм",1]
[392,"Лист_горячетканый_60мм",1]
[393,"Лист_горячетканый_100мм",1]
[394,"Лист_плоский_оцинкованый_ОЦ01БЦ045",1]
[395,"Лист_просечновытяжной_№_406_1000х3000_",1]
[396,"Лист_просечной_295х10_459кг_шт_м",1]
[397,"Лист_просечной_ПВ_508_1000х2500мм_ст.ЗПС_58кг_шт_м",1]
[398,"Лист_профилированный_С8х1150А_ОЦ01БЦ04",1]
[399,"Лом_пожарный",1]
[400,"Лом_строительный_d30мм_L1500",1]
[401,"Лом_строительный_D_25_мм_L_1250_мм_кругksq",1]
[402,"Ломгвоздодер_900х30х16мм",1]
[403,"Лопата_большая_зерновая_рельс_сталь_с_черенком_БРОНЯ",1]
[404,"Лопата_копальная_остроконечная_ЛКО_с_черенкомБРОНЯ",1]
[405,"Лопата_пожарная_совковая_с_черенком",1]
[406,"Лопата_пожарная_штыковая_с_черенком",1]
[407,"Лопата_снеговая_пластмассовая_Вьюга",1]
[408,"Лопата_снеговая_пластмассовая_Полюс_с_черенком",1]
[409,"Лопата_снеговая_пластмассовая_с_алюм.черенком",1]
[410,"Лопата_совковая",1]
[411,"Лопата_совковая_усилен_рельсовая_сталь_S2",1]
[412,"Лопата_совковая_щебеночная_ЛСЩ_рельсовая_сталь_без_черенка_сердечко",1]
[413,"Лопата_штыковая",1]
[414,"Лопатка_монтажная_600мм",1]
[415,"Лоток_Л2_0350",1]
[416,"Люк_Лс_шарниром_и_замком_ВЧШГ",1]
[417,"Манжета_армированая_30х47х7",1]
[418,"Манжета_армированная_38х58х10",1]
[419,"Манометр_Д100_от_0_до_10_М20х15",1]
[420,"Манометр_Д160_от_0_до_10_М20х15",1]
[421,"Манометр_Д160_от_0_до_16_М20х15",1]
[422,"Манометр_ТМ310Р.00_0...6_МРа_М12х15",1]
[423,"Манометр_ТМ510Р_М2_от_0_до_1_МПа_10_Бар_резьба_М20х15",1]
[424,"Манометр_ТМ510Р_М2_от_0_до_16_МПа_16_Бар_резьба_G1_2_класс_точности_15_с_первичной_поверкой_2_г",1]
[425,"Манометр_ТМ610Р.00_01МРаМ20х15.15",1]
[426,"Манометр_ТМ610Р.00_0...10_кгс_м2_М20х15:кл.точ15РОСМА",1]
[427,"Манометр_ТМ610Р.00_0...10_кгс_м2_М20х15:кл.точ15РОСМА",1]
[428,"Манометр_ТМ610Р.00_0...6_кгс_м2_М20х15:кл.точ15РОСМА",1]
[429,"Манометр_электроконтактный_04_МПа_М20х15_ТМ510Р.05_15",1]
[430,"Манометр_электроконтактный_ТМ510Р.05_0...10МРа_М20х15",1]
[431,"Марля",1]
[432,"Масло_REZOIL_PREMIUM_4Т_0946л",1]
[433,"Масло_гидравлическое_Hydraulic_HVLP",1]
[434,"Масло_гидравлическое_Лукойл_Гейзер_ЛТ_22_20л",1]
[435,"Масло_Лукойл_МС20_",1]
[436,"Масло_ЛУКОЙЛ_ТМ5_80W90_минеральное_50_лит.",1]
[437,"Масло_моторное_2х_тактное_200мл",1]
[438,"Масло_моторное_5W30_0946л",1]
[439,"Масло_моторное_дизельное_М10ДМ_л",1]
[440,"Масло_моторное_для_четырехтактных_двигателей_4Т_10w30_SG_CD_1лит",1]
[441,"Масло_полусинтетическое_дизель_10w_40_4л_",1]
[442,"Масло_полусинтетическое_дизельное_GAZPROMNEFT_10w40_CI4_SL_20л",1]
[443,"Масло_синтетическое_10w40_дизель_20л",1]
[444,"Масло_синтетическое_5w40_4л",1]
[445,"Масло_трансмиссионное_75W90_лит.",1]
[446,"Масло_трансмиссионное_всесезонное_Тад_17_л_минеральное",1]
[447,"Масло_трансмиссионное_ТАД17И",1]
[448,"Масло_трансмиссионное_ТСП15К_л",1]
[449,"ИЗОВЕР_Маты_из_стекловолокна_НЕМАН_М11_2х50х1200х6250_15м2_075м3",1]
[450,"Мегаомметр_МЕГЕОН_131100",1]
[451,"Мел_тальковый",1]
[452,"Мертель_МШ28_глина_огнеупорная_кг",1]
[453,"Металлорукав_РЗЦП15",1]
[454,"Металлорукав_РЗЦП32",1]
[455,"Металлорукав_РЗЦП38",1]
[456,"Метла_синтетическая_Баба_Яга",1]
[457,"Механизм_тяговый_монтажный_МТМ_32тх20м",1]
[458,"Мешок_п_п_55х105_белый",1]
[459,"Мешок_п_п_55х95_зеленый",1]
[460,"Молоток_0400_гр",1]
[461,"Молоток_0800_гр",1]
[462,"Молоток_слесарный_300гр",1]
[463,"Моторавтомат_13_18А_ЗР_MS31J13_18К",1]
[464,"Моторавтомат_610А_3Р",1]
[465,"Муфта_1_1_2х1_1_4_никел",1]
[466,"Муфта_1_1_4х1_никелир",1]
[467,"Муфта_25_мм_ПЭ_эл_св",1]
[468,"Муфта_32мм_ПЭ_эл_св",1]
[469,"Муфта_50мм_ПЭ_эл_св",1]
[470,"Муфта_63мм_ПЭ_эл_св",1]
[471,"Муфта_90мм_ПЭ_эл_св",1]
[472,"Муфта_компр._40х1_1_4мм_НР",1]
[473,"Муфта_компрессионная_ВР_Ду32х1_ПЭ",1]
[474,"Муфта_компрессионная_ВР_Ду63х2",1]
[475,"Муфта_компрессионная_Ду110х110",1]
[476,"Муфта_компрессионная_НР_25х1_",1]
[477,"Муфта_компрессионная_НР_32х1",1]
[478,"Муфта_компрессионная_п_э_Ду90х90",1]
[479,"Муфта_компрессионная_пэ_Ду25х25",1]
[480,"Муфта_компрессионная_ПЭ_Ду32х32",1]
[481,"Муфта_компрессионная_пэ_Ду50х50",1]
[482,"Муфта_компрессионная_соединит_п_э_Ду63",1]
[483,"Муфта_переходн_компр_40х1_1_2_ВР",1]
[484,"Муфта_переходн_ПНД_25х1_ВР",1]
[485,"Муфта_переходная_компрес_Д63_25",1]
[486,"Муфта_ПНД_110х110",1]
[487,"Муфта_ПЭ_компр_ВР_110х3",1]
[488,"Муфта_ПЭ_компр_НР_Ду50х2",1]
[489,"Муфта_ПЭ_компр_НР_Ду63х2",1]
[490,"Муфта_ПЭ_компрес_ВР_50х1_1_2_",1]
[491,"Муфта_ПЭ_переходн_компр_ВР_32х1_1_4",1]
[492,"Муфта_ПЭ_переходн_компр_ВР_Ду50х2",1]
[493,"Муфта_разъемная_PPRC_с_ВР_25_х1_2",1]
[494,"Муфта_редук._компр._075Х063_мм",1]
[495,"Муфта_стальная_d_15",1]
[496,"Муфта_стальная_d_25",1]
[497,"Муфта_стальная_d_32",1]
[498,"Муфта_стальная_d_50",1]
[499,"Набивка_АП_№10_",1]
[500,"Набивка_АП_№6",1]
[501,"Набивка_АП_№8",1]
[502,"Набор_ключей_комбинироваых_6х32_22_предмет_с_сумкой",1]
[503,"Набор_метчиков_и_плашек_32_предмета",1]
[504,"Набор_отверток_ударных_Smartbuy_12_штук_крестовые_и_шлицевые_ручка_под_ключ",1]
[505,"Набор_прессклещи_стк8_83347",1]
[506,"Набор_сверел_по_металлу_Ф113_",1]
[507,"Набор_шестигранных_ключей_со_сферической_головкой_10_шт_RAGE",1]
[508,"Наклейка_знак_огнетушитель",1]
[509,"Наконечник_алюминиевый_1614",1]
[510,"Наконечник_болтовой_1НБ10_25_",1]
[511,"Наконечник_кольцевой_изолир._НКИ_254",1]
[512,"Наконечник_мед_1012",1]
[513,"Наконечник_медный_луженый_ТМЛ_664",1]
[514,"Наконечник_медный_Т_1065_НК_56",1]
[515,"Наконечник_НВИ15х30_вилка",1]
[516,"Наконечник_НВИ15х4мм_вилка",1]
[517,"Наконечник_НВИ25х4мм",1]
[518,"Наконечник_НКИ_558",1]
[519,"Наконечник_Т_1666_медь",1]
[520,"Наконечник_ТА_35",1]
[521,"Наконечник_ТМ_10",1]
[522,"Наконечник_штыревой_втулочный_07510",1]
[523,"Напильник_квадратный_250мм",1]
[524,"Напильник_круглый_300",1]
[525,"Напильник_плоский_150",1]
[526,"Напильник_трехгранный_250мм",1]
[527,"Насос_для_воды_погружной_ETERNA_SQ70_2800_л_ч70м550Вт_для_скважины",1]
[528,"Насос_дренажный_ЗУБР_1100Вт_для_грязной_воды_Профессионал",1]
[529,"насос_КМ_5032125",1]
[530,"Насос_НШ32_М_20_МПа_правый_МЗПО",1]
[531,"Насос_погруж.скважинный_БЦПЭГВ10012100мЧдля_грязн.воды",1]
[532,"Насос_погружной_БЦПЭГВ850870мдля_гряз.воды_Vodotok_d85мм950Вт",1]
[533,"Насос_погружной_для_перекачки_топлива_жидкости_с_несъемным_фильтром_24vD38_БАК17438",1]
[534,"Насос_погружной_Ручеек_25м",1]
[535,"Насос_погружной_скважинный_БЦПЭГВ850540мЧ_Водоток",1]
[536,"Насос_скважинный_БЦП_3.50.63125_1800_Вт_135_м_6.3_м3_час_кабель_1_м_220В_погружной",1]
[537,"Насос_циркуляционный_SHIMGE_ТВ_6530_25.5_3х380В;_550кВт",1]
[538,"Насос_ЭЦВ_42580",1]
[539,"Насос_ЭЦВ_46114",1]
[540,"Насос_ЭЦВ_610110",1]
[541,"Насос_ЭЦВ_61080",1]
[542,"Насос_ЭЦВ_616110",1]
[543,"Насос_ЭЦВ_616140_92кВт",1]
[544,"Насос_ЭЦВ_66585",1]
[545,"Нить_подмотка_для_труб_50м",1]
[546,"Нож_строительный_18мм",1]
[547,"Ножницы_по_металлу",1]
[548,"Ножовка_по_дереву_400мм",1]
[549,"Обезжиреватель_1_л",1]
[550,"Огнетушитель_ОП4",1]
[551,"Огнетушитель_ОП5",1]
[552,"Огнетушитель_ОУ10",1]
[553,"Огнетушитель_ОУ3",1]
[554,"Огнетушитель_ОУ5",1]
[555,"Опора_каретки_ТШПм145_СБ_правялевая",1]
[556,"Оправа_для_термометра_прямая_103мм",1]
[557,"Оправа_защитная_2П265_10063МПа",1]
[558,"Отвертка_диэлектрическая_шлицевая",1]
[559,"Отвертка_крестовая_диэлектричекая",1]
[560,"Отвертка_шлицевая_60х100мм",1]
[561,"Отвод_108х40",1]
[562,"Отвод_90_гр._50_мм_ПЭ_эл_св",1]
[563,"Отвод_90_Дн.108х35_ст.20",1]
[564,"Отвод_90_Дн.133х40_ст.20",1]
[565,"Отвод_90_Дн.159х45_ст.20",1]
[566,"Отвод_90_Дн.219х60_ст.20",1]
[567,"Отвод_90_Дн.57х30_ст.20",1]
[568,"Отвод_90_Дн.76х35_ст.20",1]
[569,"Отвод_90_Дн.89х35_ст.20",1]
[570,"Отвод_90гр._0110мм_ПЭ",1]
[571,"Отвод_90гр._25_мм_ПЭ_эл_св",1]
[572,"Отвод_90гр._90_мм_ПЭ_эп_св",1]
[573,"Отвод_гнутый_короткий_Ду_15",1]
[574,"Отвод_гнутый_короткий_Ду_20",1]
[575,"Отвод_гнутый_короткий_Ду_25",1]
[576,"Отвод_гнутый_короткий_Ду_40",1]
[577,"Отвод_гнутый_короткий_Ду32",1]
[578,"Отвод_компрессионный_пэ_Ду20",1]
[579,"Отвод_компрессионный_п_э_Ду_63",1]
[580,"Отвод_компрессионный_пэ_Ду_32",1]
[581,"Отвод_компрессионный_пэ_Ду_50",1]
[582,"Отвод_компрессионный_пэ_Ду25",1]
[583,"Отвод_компрессионный_пэ_Ду90",1]
[584,"Очиститель_монтажной_пены",1]
[585,"Паронит_маслобензостойкий_ПМБ_10мм_1500х1700",1]
[586,"Паронит_маслобензостойкий_ПМБ_15мм_1500х1700",1]
[587,"Паронит_маслобензостойкий_ПМБ_40мм",1]
[588,"Паронит_ПОНБ_06мм",1]
[589,"Пассатижи_20мм",1]
[590,"Пена_монтажная_проф._820_мл.",1]
[591,"Переключатель_LAY5BD25",1]
[592,"Переход_к_Дн_25х20_",1]
[593,"Переход_К_108х476х35_ст.20_оцинк.",1]
[594,"Переход_к_Дн_108х40_57х30_ст.20",1]
[595,"Переход_к_Дн_108х40_76х35_ст.20",1]
[596,"Переход_к_Дн_133х45_108х35_ст.20",1]
[597,"Переход_к_Дн_133х50_57х30_ст.20",1]
[598,"Переход_к_Дн_133х50_76х35_ст.20",1]
[599,"Переход_к_Дн_159х45_108х40_ст.20",1]
[600,"Переход_к_Дн_159х45_133х40_ст.20",1]
[601,"Переход_к_Дн_159х45_76х35_ст.20",1]
[602,"Переход_к_Дн_219х6_108х4_ст.20",1]
[603,"Переход_к_Дн_219х6_159х45_ст.20",1]
[604,"Переход_к_Дн_219х6_76х35ст.20",1]
[605,"Переход_к_Дн_38х2_25х16_ст.20",1]
[606,"Переход_к_Дн_38х2_32х2",1]
[607,"Переход_к_Дн_45х25_32х20",1]
[608,"Переход_к_Дн_57х30_25х16_ст.20",1]
[609,"Переход_к_Дн_57х30_32х20_ст.20",1]
[610,"Переход_к_Дн_76х35_38х25_ст.20",1]
[611,"Переход_к_Дн_76х35_57х30_ст.20",1]
[612,"Переход_к_Дн_89х35_45х25",1]
[613,"Переход_к_Дн_89х35_57х30_ст.20",1]
[614,"Переход_к_Дн_89х35_76х35_ст.20",1]
[615,"Переход_к_Ду_25х15",1]
[616,"Переход_ПЭ_латунь_25х3_4_НР",1]
[617,"Переход_ПЭ_латунь_32х1_ВР",1]
[618,"Переход_ПЭ_латунь_32Х1_HP",1]
[619,"Переход_ПЭ_латунь_50х1_1_2_НР",1]
[620,"Переход_ПЭ_латунь_63х2мм_НР",1]
[621,"Переход_ПЭ_латунь_63х2мм_ВР",1]
[622,"Переход_ред_110х90_мм_ПЭ_эл_св",1]
[623,"Переход_ред._32х25мм_ПЭ_эл_св",1]
[624,"Переход_ред._40х32мм_ПЭ_эл_св",1]
[625,"Переход_ред._63х50мм_ПЭ_эл_св",1]
[626,"Переход_ред.50х32мм_ПЭ_эл_св",1]
[627,"Переход_ред.50х40мм_ПЭ_эл_св",1]
[628,"Пиломатериал_из_лиственницы",1]
[629,"Пиломатериал_сосна_сухая",1]
[630,"Пиломатериал_сухой_ель",1]
[631,"Пистолет_для_герметиков",1]
[632,"Пистолет_для_монтажной_пены",1]
[633,"Планка_шурующая_ТШПМ145",1]
[634,"Пластина_защитная_110х90",1]
[635,"Плита_П615",1]
[636,"Пломба_роторная_РХ3М",1]
[637,"Плоскогубцы_комб.200мм",1]
[638,"Подводка_ELKA_Г_Г_1м",1]
[639,"Подводка_ELKA_Г_Ш_1м",1]
[640,"Подводка_ELKA_Г_Ш_25м",1]
[641,"Подводка_для_смесителя_ELKA_04м",1]
[642,"Подшипниик_6205_2RS_180205",1]
[643,"Подшипниик_6206_2RS_180206",1]
[644,"Подшипниик_6306_2RS_180306",1]
[645,"Подшипниик_6306_180306_открытые",1]
[646,"Подшипниик_6308_2_RS_180308",1]
[647,"Подшипниик_6309_2_RS_180309",1]
[648,"Подшипниик_6310_2RS_180310",1]
[649,"Подшипниик_6310_180310_открытые",1]
[650,"Подшипниик_6312_2RS_180312",1]
[651,"Подшипниик_6313_2RS_180313",1]
[652,"Подшипниик_6314_2RS_180314",1]
[653,"Подшипник_6202_2RS_180202",1]
[654,"Подшипник_7520",1]
[655,"Подшипник_12х37х12_63012RS",1]
[656,"Подшипник_180307_6307_2RS",1]
[657,"Подшипник_180204",1]
[658,"Подшипник_180207",1]
[659,"Подшипник_180208_6208_2RS",1]
[660,"Подшипник_180209_6209_2RS",1]
[661,"Подшипник_180304_6304_2RS",1]
[662,"Подшипник_180311_6311_2RS",1]
[663,"Подшипник_680205",1]
[664,"Подшипник_6305_2_RS",1]
[665,"Подшипник_66410_Л_7410",1]
[666,"Подшипник_HR30207",1]
[667,"Полоса_40х4_ст2сп_78кг_шт60м_м",1]
[668,"Полотно_вафельное_45х60м_м",1]
[669,"Полотно_противопожарное_2х15м",1]
[670,"Порошок_стиральный_400_гр",1]
[671,"Порошок_стиральный_450_гр",1]
[672,"Пост_кнопочный_ПКЕ_2222",1]
[673,"Припой_ПОС61_1мм_100гр",1]
[674,"Припой_ПОС61_д._8мм_170гр200гр",1]
[675,"Припой_пруток_ПОС40_д.8мм_L400",1]
[676,"Приставка_контактн.ПКЭ22",1]
[677,"Провод_ВВГ_3х25",1]
[678,"Провод_ВВП_1х10_мм",1]
[679,"Провод_для_связи",1]
[680,"Провод_ПБГВВ_2х1.5_ГОСТ_10_м",1]
[681,"провод_ПВ3_ПУГВ_1х40_ГОСТ_ж_з",1]
[682,"Провод_ПВС_2х075",1]
[683,"Провод_ПВС_2х15",1]
[684,"Провод_ПВС_3х15",1]
[685,"Провод_ПВС_3_ПуГВ_1х50",1]
[686,"Провод_СИП2_3х701х70",1]
[687,"Провод_СИП4_4х16",1]
[688,"Провод_СИП4_4х35",1]
[689,"Провод_СИП4_4х50",1]
[690,"Провод_ШВВП_2х075",1]
[691,"Провод_электрический_Пугв_1х10_красный_",1]
[692,"Проволока_витая_d=08мм_;h=100_ПРН_08",1]
[693,"Проволока_вязальная_d12_мм_бухта_500_метров",1]
[694,"Прожектор_светодиодный_100Вт",1]
[695,"Прожектор_светодиодный_20_вт",1]
[696,"Прожектор_светодиодный_30_Вт",1]
[697,"Прожектор_светодиодный_50_Вт",1]
[698,"Прожектор_светодиодный_70_Вт",1]
[699,"Прожектор_светодиодный_12_Вт",1]
[700,"Пружина",1]
[701,"Пульт_на_тельфер",1]
[702,"Пульт_управления_ПКТ62",1]
[703,"Пускатель_в_корпусе_IP65_КМЭ_25А_400В_РТЭ",1]
[704,"Пускатель_ПМ_12100200_220В",1]
[705,"Пускатель_ПМА_3200_220В",1]
[706,"Пускатель_ПМЕ_212_220В",1]
[707,"Пускатель_эл.магнитный_18А_Uk220_В",1]
[708,"Пускатель_электромагнитный_ПМЛ1161_ДМ_18А_230В",1]
[709,"Пускатель_электромагнитный_ПМ12100150_380В_2з_2р",1]
[710,"Радиальный_вентилятор_трехфазный_200Т2К_диаметр_воздуховода_163_см_центробежный_380_В_140_Вт_",1]
[711,"Разъем_РМ_22_3",1]
[712,"Разъем_СКР1025_вставка",1]
[713,"Разъем_СКРП1025_гнездо",1]
[714,"Регулятор_давления_поршневой_Ду_32_Ру25_ВР_Рн=155_бар_с_выходом_под_манометр",1]
[715,"Регулятор_давления_поршневой_Ду_50",1]
[716,"Редуктор_MRV_090100_119_200",1]
[717,"Резьба_d_15",1]
[718,"Резьба_d_20",1]
[719,"Резьба_d_25",1]
[720,"Резьба_d_32",1]
[721,"Резьба_d_40",1]
[722,"Резьба_d_50",1]
[723,"Резьба_d_65",1]
[724,"Резьба_Ду100",1]
[725,"Резьба_Ду80_",1]
[726,"Реле_ПКЭ11",1]
[727,"Реле_JZX22F_D_220VAC_3Z",1]
[728,"Реле_времени_15",1]
[729,"Реле_времени_JSZ3AB_базового_типа_АС_220В",1]
[730,"Реле_времени_РВ_2Д_10сек_60мин",1]
[731,"Реле_временитаймер_Н3Y2010_сек_220В_5А",1]
[732,"Реле_давления_Vodotok_МДД_2_ВР_3_8",1]
[733,"Реле_давления_воды_для_насоса_механическоеизбыточного_давления_EKF_RVG2006_06VG",1]
[734,"Реле_избыточного_давления_RVG201616_МПа",1]
[735,"Реле_избыточного_давления06_МПа",1]
[736,"Реле_контроля_напряжения_РКН31515",1]
[737,"Реле_контроля_фаз_ЕЛ11Е_380В_50Гц",1]
[738,"Реле_контроля_фаз_МКС06",1]
[739,"Реле_промежуточное_РП22_3_5А",1]
[740,"Реле_РТИ1306_913_А",1]
[741,"Реле_РТИ1314_электротепловое_710_А_ИЭК",1]
[742,"Реле_РТИ3359_4865А",1]
[743,"Реле_РТИ3365_8093А",1]
[744,"Реле_РТТ325П_100А",1]
[745,"Реле_РТЭ1312электротепловое_558А_ИЭК",1]
[746,"Реле_РТЭ1321_1218_А",1]
[747,"Реле_РТЭ2355_3040А",1]
[748,"Реле_РТЭ3361_5570А",1]
[749,"Реле_РЭК78_3_24DC_с_модульным_разъемом",1]
[750,"Реле_тепловое_для_контакторов_4095А",1]
[751,"Реле_тепловое_РТИ1316_913А",1]
[752,"Реле_тепловое_РТТ_325П_80А_6892А",1]
[753,"Реле_тепловое_РТЭ_254_А",1]
[754,"Реле_электротепловое_для_контакторов_0918А",1]
[755,"Реле_электротепловое_РТЛ2055_УХЛ4_300400А_660_50Гц",1]
[756,"Розетка_2м_16А_250_Вт_со_шторками_с_заземл.",1]
[757,"Розетка_3ех_местная_с_з_к_каучук_с_заглушками_16А",1]
[758,"Розетка_накладная_двойная_с_заземлением_16А_250В",1]
[759,"Розетка_о_п_4П_с_з_бел",1]
[760,"Розетка_ОП1П_в_ассортименте",1]
[761,"Розетка_панельная_1025",1]
[762,"Розетка_РАp_103ОП_на_Динрейку",1]
[763,"Розетка_с_винтовыми_клеммами_под_шайбу",1]
[764,"Ролик_прижимной_тшпм08145_в_сборе",1]
[765,"Ролик_топки_ТШПМ145",1]
[766,"Ролик_топки_ТШПМ20_в_сборе",1]
[767,"Рубероид_РКК350_1х10м_Технониколь",1]
[768,"Рукав_высокого_давления_М27х15",1]
[769,"Рукав_для_ПК_20м_Ду51_с_ГР50",1]
[770,"Рукав_дюритовый_40У_Д25",1]
[771,"Рукав_резиновый_напорный_неармированный_40х51516",1]
[772,"Рулетка_10_м",1]
[773,"Рулетка_5м",1]
[774,"Рулон_минераловатный_фольгированный_50х1200х12500мм",1]
[775,"Сальник_манжета_армированная_235х55х8",1]
[776,"Сальник_120х15012",1]
[777,"Сальник_45х80",1]
[778,"Сальник_50х65х8_ФТОР_вторичного_вала_задний",1]
[779,"Саморез_35х35_дерево",1]
[780,"Саморез_для_сэндвичпанелей_63_55х105мм",1]
[781,"Саморез_ШУЦ_4х60",1]
[782,"Саморезы_кровельный_48х51_сверлоцинкс_шайбой",1]
[783,"Саморезы_прессшайба_42х16",1]
[784,"Саморезы_ШСГМ_38х64_потай_частая_резьба_черный",1]
[785,"Саморезы_ШУЦ_35х12",1]
[786,"Саморезы_ШУЦ_35х16",1]
[787,"Саморезы_ШУЦ_35х25_м.к",1]
[788,"Саморезы_ШУЦ_35х30",1]
[789,"Сверло_по_металлу_12_мм",1]
[790,"Сверло_по_металлу_4_мм",1]
[791,"Сверло_по_металлу_6_мм",1]
[792,"Сверло_по_металлу_8_мм",1]
[793,"Сверло_по_металлу_проточенное_Ф14",1]
[794,"Сверло_по_металлу_проточенное_Ф15",1]
[795,"Сверло_по_металлу_проточенное_Ф16",1]
[796,"Сверло_по_металлу_проточенное_Ф18",1]
[797,"Сверло_по_металлу_спиральное_3х33х61мм_10шт",1]
[798,"Сверло_ср.серии_62",1]
[799,"Сверло_ступенчатое_Aceline_SDA0925_936мм_10_ступеней",1]
[800,"Сверло_центрирующее_для_коронок_биметалических_Ф_63",1]
[801,"Светильник_светодиодный_36Вт",1]
[802,"Светильник_светодиодный_36Вт_6500К_1200мм",1]
[803,"Светильник_светодиодный_595х595х19_36Вт_3060Лм_4000К",1]
[804,"Светильник_светодиодный_аварийный",1]
[805,"Светильник_светодиодный_промышленный_36Вт",1]
[806,"Светильник_светодиодный_пылевлагозащищенный_ДСП1010_АйсберЭ_36Вт",1]
[807,"Светильник_светодиодный_Эра_SPO6366КР36Вт_6500К_3060Лм",1]
[808,"Светофильтр_110х90_ТС3_С3_8SG1",1]
[809,"Светофильтр_110х90_ТС3_С4_9SG1",1]
[810,"Светофильтр_110х90_ТС3_С5_10SG1",1]
[811,"Сгон_Ду15",1]
[812,"Сгон_Ду15_L=90",1]
[813,"Сгон_Ду20",1]
[814,"Сгон_Ду25",1]
[815,"Сгон_Ду32",1]
[816,"Сгон_Ду40",1]
[817,"Сгон_Ду50",1]
[818,"Сегмент_зубчатой_рейки_ТШПМ_плоский",1]
[819,"Седелка_креп.болт_110х2_ПЭ",1]
[820,"Седелка_креп.болт_50х3_4_ПЭ",1]
[821,"Седелка_болтовая_50х1",1]
[822,"Седелка_компр_ПЭ_с_резьб.отводом_Ду110х2",1]
[823,"Седелка_компр_ПЭ_с_резьбовым_отводом_Ду110х1_",1]
[824,"Седелка_компрессионная_пэ_с_резьб.отводом_Ду50х1",1]
[825,"Седелка_резьбовая_110х1_1_4мм",1]
[826,"Седелка_резьбовая_50х1_мм",1]
[827,"Седелка_резьбовая_90х1мм",1]
[828,"Седелочный_отвод_110х32мм_ПЭ_эл_св_патрубок_сверху",1]
[829,"Седелочный_отвод_90х32мм_ПЭ_эл_св_с_фрезой",1]
[830,"Седелочный_отвод_ПЭ100_эл_св_0110х0063",1]
[831,"Седелочный_отвод_ПЭ100_эл_св_63х25",1]
[832,"Сетка_арматурная_100х100_1000х3000",1]
[833,"Сетка_арматурная_4х100х1001х3_м",1]
[834,"Сетка_оцинкованная_паяная_10х10х12мм_ш.1м",1]
[835,"Сетка_рабица_50х50х15мдлина_10м.",1]
[836,"Сифон_для_раковины",1]
[837,"Скорлупа_ППУ57_50",1]
[838,"Скотч_ХК_армированный_48_ммх10_м_серый",1]
[839,"Смазка_ЛИТОЛ24_0800гр",1]
[840,"Смазка_проникающая_жидкий_ключ_400мл",1]
[841,"Смеситель_для_ванной_с_душем",1]
[842,"Смеситель_для_ванны",1]
[843,"Смеситель_для_кухни_",1]
[844,"Соединение_НСПС_0090_ст089_ПЭ100_ВОДА_SDR17",1]
[845,"Средство_для_удаления_минеральных_отложений_Zfaza",1]
[846,"Степлер_строительный",1]
[847,"Стремянка_8_ступеней",1]
[848,"Строп_30т6м90мм",1]
[849,"Строп_СТП_25тх3м_60мм",1]
[850,"строп_СТП50_125_3000",1]
[851,"Счетчик_воды_Декаст_ВСКМ_9032_",1]
[852,"Счетчик_воды_Декаст_ВСКМ_9050",1]
[853,"Счетчик_воды_Декаст_СТВХ100",1]
[854,"Счетчик_воды_Декаст_СТВХ50",1]
[855,"Счетчик_воды_Декаст_СТВХ80",1]
[856,"Счетчик_воды_ультрозвуковой_DN50_RS485_цифровой_расходомер_воды_IP68",1]
[857,"Счетчик_для_воды_Decast_ОСВУ15_универсальный",1]
[858,"Съемник_3х_лапый_250мм",1]
[859,"Таймер_Н5ВМ6_220V",1]
[860,"Таль_ручная_цепная_10_т_6_м",1]
[861,"Таль_электрическая_канатная_CD1_1Тх6М",1]
[862,"Талреп_кольцокольцо",1]
[863,"Тачка_700_110л_200кг_строительная_2х_колесная",1]
[864,"Тачка_строительная_однокол_110л_220кг",1]
[865,"Тележка_электрическая_к_тали",1]
[866,"Тент_с_люверсами_2х3м_60т_м2_Синий",1]
[867,"Теплоизлучатель_150Вт",1]
[868,"Теплоизоляция_отражающая_3мм_5м20",1]
[869,"Термометр_160_С_ТТЖП_5_240_103",1]
[870,"Термометр_250С_БТ32_211.100_25",1]
[871,"Термометр_биметалический_D100_от_0_до160_кл.т.25_L=100_G1_2",1]
[872,"Термометр_технический_жидкостный_0..100_С",1]
[873,"Термометр_техническуий_жидкостный_0..150_С_L=240_103",1]
[874,"Терморегулятор_ТУДЭ_4м1",1]
[875,"Термостат_ТС2_1750",1]
[876,"Топор_17_кг_Б3",1]
[877,"Топор_для_пожарного_щита_красная_ручка",1]
[878,"Торцевое_уплотнение_к_насосу_Wilo_MHI16031_Е400502_1ЕЗ_",1]
[879,"Торцевое_уплотнение_РС155В22_CER_CAR_NBR",1]
[880,"Трансформатор_тока_ЯТП_0.25_220_12",1]
[881,"Тройник_PPRC_25х20х25",1]
[882,"Тройник_компресс._PN16_d32мм",1]
[883,"Трос_из_нерж_стали_4мм_60мзажимы_12шт",1]
[884,"Трос_оцинкованный_100_мм",1]
[885,"Трос_оцинкованный_80_мм",1]
[886,"Трос_стальной_83мм",1]
[887,"Трос_стальной_в_ПВХ_оболочке_d3",1]
[888,"Труба_ВГП_32х35_Cт.20",1]
[889,"Труба_108х5_127кг_м_толстостенная",1]
[890,"Труба_133х5",1]
[891,"Труба_159х452501ППУПЭ_м",1]
[892,"Труба_50х8_б_ш_х_д_Ст.20",1]
[893,"Труба_50х9_б_ш_х_д_Ст_20",1]
[894,"Труба_89х35_м",1]
[895,"Труба_PPRC_25х20",1]
[896,"Труба_б_ш_Ст.Ду_108х45",1]
[897,"Труба_б_ш_Ст.Ду_133х5",1]
[898,"Труба_б_ш_Ст.Ду_32х3",1]
[899,"Труба_б_ш_Ст.Ду_42х4",1]
[900,"Труба_б_ш_Ст.Ду_57х35",1]
[901,"Труба_б_ш_Ст.Ду_60х4",1]
[902,"Труба_б_ш_Ст.Ду_76х35",1]
[903,"Труба_б_ш_Ст.Ду_89х35",1]
[904,"Труба_ВГП_ст.20_Ду_50х35",1]
[905,"Труба_ВГП_Ду_25х32",1]
[906,"Труба_ВГП_Ду_20х28",1]
[907,"Труба_ВГП_Ду_50х35",1]
[908,"Труба_ВГП_Ду15х28",1]
[909,"Труба_ВГП_Ду32х32",1]
[910,"Труба_ВГП_Ду40х35",1]
[911,"Труба_ВГП_Ст20_Ду32х32",1]
[912,"Труба_гофрированная_Д16_мм",1]
[913,"Труба_гофрированная_Д20_мм",1]
[914,"Труба_гофрированная_Д32_мм",1]
[915,"Труба_гофрированная_двустенная_ПНД_красная_d32_мм_100м_уп",1]
[916,"Труба_оц.57х35_L6.0.КТЗ",1]
[917,"Труба_ПВХ_гофро_с_зонд._д_25",1]
[918,"Труба_ПВХ_гофро_с_зонд._д_63",1]
[919,"Труба_ПНД_20х2.0",1]
[920,"Труба_ПНД_25х2_",1]
[921,"Труба_ПНД_32х20мм",1]
[922,"Труба_ПНД_110х6.6",1]
[923,"Труба_ПНД_50х30",1]
[924,"Труба_ПНД_д.40х24_мм",1]
[925,"Труба_ПНД_д.63х38мм",1]
[926,"Труба_профильная_40х20х20",1]
[927,"Труба_профильная_60х60х3",1]
[928,"Труба_ПНД_90_х_54_",1]
[929,"Труба_Ст_3238х321101ППУПЭ_в_составе_труба_ВГП_Дн_32",1]
[930,"Труба_эл_св_108х35_108.4_кг_шт_м",1]
[931,"Труба_эл_св_159х40_L_12м",1]
[932,"Труба_эл_св_57х35_м_",1]
[933,"Труба_эл_св_76х35_L12м",1]
[934,"Труба_эл_св_89х35_Ст20_L12",1]
[935,"Труба_эл_св_Ст20_57х35",1]
[936,"Труба_электросварная_133х45",1]
[937,"Труба_электросварная_Ст.20_ду_219х60_м",1]
[938,"Трубка_КFLEX_25х352_ST24",1]
[939,"Трубка_прозрачная_ПВХ_6х10",1]
[940,"Трубка_с_клеем_ТТК_24_6",1]
[941,"Трубка_термоусадочная_клеевая_ТТК_12_3",1]
[942,"Трубка_термоусадочная_клеевая_ТТК_16_4",1]
[943,"Трубка_термоусадочная_клеевая_ТТК_32_8",1]
[944,"Трубка_термоусадочная_клеевая_ТТК_8_2",1]
[945,"Трубка_ТуТнг_30_15",1]
[946,"Трубосборка_Ст_25323238180ППУПЭ_в_составе_труба_Ст_25_25х32_оцинк_32х35_ЭСВ",1]
[947,"Трубосборка_Ст_323857200ППУПЭ_в_составе_труба_Dn_32х3.2_ВГП_57х35",1]
[948,"Трубосборка_Ст_7676250ППУПЭ_в_составе_труба_Ст_76х35_ЭСВ_Ст_76х35_ЭСВоцинк",1]
[949,"Тряпка_для_мытья_полов",1]
[950,"Уайтспирит_05_л",1]
[951,"Уайтспирит_1_л",1]
[952,"УШМ_Макита_125мм840Вт1100об_мин",1]
[953,"УШМ_Makita_GA9020_230мм",1]
[954,"Уголок_40х40х4",1]
[955,"Уголок_50х50х4",1]
[956,"Уголок_90х90х7_12_м_ЗСП_м",1]
[957,"Угольник_PPRC_90_гр_25",1]
[958,"Угольник_столярный_цельнометал._200х300",1]
[959,"удлинитель_30м",1]
[960,"Удлинитель_5_гн._3_м",1]
[961,"Указатель_напряжения:_ПИН_90Э",1]
[962,"Универсальный_блок_питания_12В_1А_без_индикатора_работы_штекер_5.5х2.5мм",1]
[963,"Уничтожитель_ЛКП_В52_085_кг",1]
[964,"Уплотнение_мех.торц_SNFNA22mm",1]
[965,"Уплотнение_мех.торц_SNMG125mm",1]
[966,"Уплотнение_мех.торц_SNMG1328mm",1]
[967,"Уплотнитель_насоса_торцевой_10945",1]
[968,"Устройство_автоматического_ввода_резерва_100А_4Р",1]
[969,"Устройство_заряднопредпусковое_ВСТ30",1]
[970,"Устройство_плавного_пуска_380В_11кВт_22А",1]
[971,"Устройство_управления_и_защиты_контроллер_L2_012.45.00.00.00",1]
[972,"Утеплитель_межвенцовый_810мм",1]
[973,"УШМ_Болгарка_220В_125ММ_1100Вт_12000об_мин_9565HZ_Макита",1]
[974,"Фен_технический_220В_1600Вт_350550хС_Зубр",1]
[975,"Фильтр_сетчатый_латунный_Д_15",1]
[976,"Фильтр_сетчатый_латунный_Д_20",1]
[977,"Фильтр_сетчатый_латунный_Д_32",1]
[978,"Фильтр_сетчатый_латунный_Д_50",1]
[979,"Фланец_0110мм_с_покрытием_ПП",1]
[980,"Фланец_плоский_1008010_ст20_90_расточ",1]
[981,"Фланец_плоский_10016011ВСт20",1]
[982,"Фланец_плоский_12516011В_ст.20",1]
[983,"Фланец_плоский_15016011В_ст.20",1]
[984,"Фланец_плоский_20016011В_ст.20",1]
[985,"Фланец_плоский_5016011В_ст.20",1]
[986,"Фланец_плоский_6516011В_ст.20",1]
[987,"Фланец_плоский_8016011В_ст.20",1]
[988,"Фонарь_аккумуляторный_КОСМОС",1]
[989,"Фонарь_налобный",1]
[990,"Фотореле_ФРЛ01_230В_50Гц_6А",1]
[991,"Фторопласт_стержень_Ф4_100мм",1]
[992,"Фторопласт_стержень_Ф4_Ф_40мм",1]
[993,"Фторопласт_стержень_Ф4_ф_50мм",1]
[994,"Футорка_1_2х1_4",1]
[995,"Футорка_под_ключ_Ду20_32",1]
[996,"Футорка_под_ключ_Ду20_40",1]
[997,"Футорка_под_ключ_Ду25_32",1]
[998,"Хвостовик_6гранный_для_коронок_30200мм_5_8",1]
[999,"Хомут_кабельный_36х200_белый_100шт",1]
[1000,"Хомут_КСС_3х100",1]
[1001,"Хомут_КСС_3х200",1]
[1002,"Хомут_КСС_48х350",1]
[1003,"Хомут_КСС_5х250",1]
[1004,"Хомут_силовой_3639",1]
[1005,"Цемент",1]
[1006,"Цепь_16В1_1778",1]
[1007,"Цепь_BRAIT_3_8LP1350",1]
[1008,"Цепь_Штиль_35_50_3_8_13",1]
[1009,"Цилиндр_70х500заготовка",1]
[1010,"Цилиндр_90х500заготовка",1]
[1011,"Цилиндр_90хН400_отливка",1]
[1012,"Цилиндровый_механизм_45х55_5_ключ",1]
[1013,"Черенок_для_лопаты",1]
[1014,"Чистящее_средство_ПЕМОЛЮКС_480гр",1]
[1015,"Шайба_М_12",1]
[1016,"Шайба_М_16",1]
[1017,"Шайба_М_8_кг",1]
[1018,"Шайба_М14",1]
[1019,"Шайба_М18",1]
[1020,"Шайба_М20",1]
[1021,"Шайба_М10",1]
[1022,"Шайба_М24",1]
[1023,"Швеллер_10П",1]
[1024,"Швеллер_14П",1]
[1025,"Швеллер_8_П",1]
[1026,"Швеллер_№12_П",1]
[1027,"Швеллер_№16_П",1]
[1028,"Шина_нулевая_8х1220",1]
[1029,"Шина_нулевая_на_DINрейку_ШИ_6х6_ДС",1]
[1030,"Шкаф_пожарный_ШПК_310_НЗК_540х650х200_замок_почтовый",1]
[1031,"Шкурка_шлифовальная_водостойкая_230х280",1]
[1032,"Шланг_поливочный_армированный_15_м",1]
[1033,"Шланг_поливочный_армированный_20_м",1]
[1034,"Шланг_поливочный_25_м",1]
[1035,"Шланг_соединительный_прямой_для_насосной_станции_1_м",1]
[1036,"Шнур_асбестовый_ШАОН_10_мм",1]
[1037,"Шнур_асбестовый_ШАОН_16_мм",1]
[1038,"Шнур_асбестовый_ШАОН_30_мм",1]
[1039,"Шнур_бытовой_ШВВП_2х1.5_мм",1]
[1040,"Шнур_Д5_мм_20м_цветной",1]
[1041,"Шпилька_М10х1000",1]
[1042,"Шпилька_М12х1000",1]
[1043,"Шпилька_М14х1000",1]
[1044,"Шпилька_М16х1000",1]
[1045,"Шпилька_М18х1000",1]
[1046,"Шпилька_М20х1000",1]
[1047,"Штуцер_быстроразъемного_соединения_с_наружной_резьбой_1_2",1]
[1048,"Штуцер_быстросъем_ВР_1_2",1]
[1049,"Шуруповерт_FinePower_безударный_2000_об_мин_65_Нхм_20_В_2.0_Ахч_2хАКБ_кейс",1]
[1050,"Щетка_6рядная_стальная",1]
[1051,"Щетка_сметка_350мм",1]
[1052,"Щеткакрацовка_д100",1]
[1053,"Щит_распред_ЩРН9_250х300х120",1]
[1054,"Щит_распределительный_навесной_4_модуля_Stekker",1]
[1055,"Щиток_ЩРН9",1]
[1056,"Щуп_для_мультиметра_силиконовый_2шт",1]
[1057,"Экокомплексонат_ОЭДФ100",1]
[1058,"Эл._двигатель_АИР_112МВ6_4кВт_1000об_мин._IМ1081_Э",1]
[1059,"Эл._двигатель_АИР_71А4_055кВт_1500об_мин",1]
[1060,"Эл.двигатель_АДМ_112МА6_3кВт_1000об_мин.220_380В",1]
[1061,"Эл.двигатель_АИР_100S2_4кВт_3000об_мин_220_380",1]
[1062,"Эл.двигатель_АИР_112_МА6_3кВт_1000_об_мин",1]
[1063,"Эл.двигатель_АИР_80МВ2_225кВт_3000об_мин.",1]
[1064,"Эл.двигатель_АИР_90L4_22кВт_1500об_мин",1]
[1065,"Электрический_кабель_ВВГПнгА_LS_2_х_25",1]
[1066,"Электродвигатель_5АИ_112МА6_3_кВт_1000об_мин.220_380_IM1081",1]
[1067,"Электродвигатель_АИР_112_М2_1081_220_380_75х3000ЭШМ",1]
[1068,"Электродвигатель_АИР_90L2_1081_220_380_3.0х3000",1]
[1069,"Электродержатель_400А",1]
[1070,"Электродержатель_HANDY_200_ESAB",1]
[1071,"Электроды_ОК_46_30мм_кг",1]
[1072,"Электроды_ОК_46_40мм",1]
[1073,"Электроды_УОНИ13_55_3мм",1]
[1074,"Электромагнитный_пускатель_ПМА4100_УХЛ4_Б400В",1]
[1075,"Электротепловое_реле_РТЭ1310_46А",1]
[1076,"Эмаль_КО813_серебристая_до_500°С_18кг",1]
[1077,"Эмаль_ПФ115_белая_5кг",1]
[1078,"Эмаль_термостойкая_Церта_красная",1]
[1079,"Эмаль_термостойкая_Церта_серебристая",1]
[]
[]
[]
[]
[]
[]
[]
[]
[]
[]
[]
[]
[]
[]
[]
[]
[]
[]
[]
[]
[null,"Итого"]

{"sheet":"Оборудование кот №1","index":2,"n_rows":1085,"n_cols":49,"rows_kept":1085,"cut":false,"hidden":false,"merged":[[7,43,7,47],[7,28,7,32],[7,38,7,42],[7,33,7,37],[7,19,7,23],[7,24,7,27]]}
[null,null,null,null,null,null,"ООО \"Теплосервис\""]
[null,null,null,null,null,null,"План -График"]
[null,null,null,null,null,null,"работ по подготовке к отопительному сезону 2026 - 2027 года"]
[null,null,null,null,null,null,"на период с 01.04.2026 по 30.09.2026г."]
[null,null,null,null,null,null,"котельная № 1"]
[null,null,null,null,null,null,"поселок Ангарский"]
[null,null,null,null,null,null,"мастер Левченков Александр Васильевич"]
[null,null,null,null,"Раздел","Объект работ","Вид работ",null,null,null,null,"Наименование работ",null,"Материалы",null,null,null,null,null,"апрель",null,null,null,null,"май",null,null,null,"июнь",null,null,null,null,"июль",null,null,null,null,"август",null,null,null,null,"сентябрь"]
[null,null,null,null,null,null,"Р","КР","ТО","ед. изм","кол-во",null,"способ",null,"ед. изм","кол-во","цена","сумма","Фильтр","1-3","6-10","13-17","20-24","27-30","4-8","11-15","18-22","25-29","1-5","8-11","15-19","22-26","29-30","1-3","6-10","13-17","20-24","27-31","3-7","10-14","17-21","24-28","31","1-4","7-11","14-18","21-25","28-30","% готовности"]
[null,null,null,null,1,2,3,4,5,6,7,8,9,10,11,12,13,14,15,16,17,18,19,20,21,22,23,24,25,26,27,28,29,30,31,32,33,34,35,36,37,38,39,40,41,42,43,44]
[null,null,null,null,"1.","Электрооборудование",{"$f":"IF(COUNTBLANK(G12:G61)<50,\"Х\",\"-\")","v":"-"},{"$f":"IF(COUNTBLANK(H12:H61)<50,\"Х\",\"-\")","v":"-"},"-",null,null,null,null,null,null,null,"=",null,"**"]
[null,{"$f":"RIGHT(N12,3)","v":""},{"$f":"MID(N12,1,5)","v":""},{"$f":"MID(N12,1,6)","v":""},"1.1",null,null,null,null,null,null,null,null,null,null,null,"=",{"$f":"IFERROR(P12*Q12,\"-\")","v":"-"},{"$f":"IF(F12&G12&H12&I12&J12&K12&L12&M12&N12&O12&P12=\"\",\"-\",\"**\")","v":"-"}]
[null,{"$f":"RIGHT(N13,3)","v":""},{"$f":"MID(N13,1,5)","v":""},{"$f":"MID(N13,1,6)","v":""},"1.2",null,null,null,null,null,null,null,null,null,null,null,"=",{"$f":"IFERROR(P13*Q13,\"-\")","v":"-"},{"$f":"IF(F13&G13&H13&I13&J13&K13&L13&M13&N13&O13&P13=\"\",\"-\",\"**\")","v":"-"}]
[null,{"$f":"RIGHT(N14,3)","v":""},{"$f":"MID(N14,1,5)","v":""},{"$f":"MID(N14,1,6)","v":""},"1.3",null,null,null,null,null,null,null,null,null,null,null,"=",{"$f":"IFERROR(P14*Q14,\"-\")","v":"-"},"-"]
[null,"","","","1.4",null,null,null,null,null,null,null,null,null,null,null,"=","-","-"]
[null,"","","","1.5",null,null,null,null,null,null,null,null,null,null,null,"=","-","-"]
[null,"","","","1.6",null,null,null,null,null,null,null,null,null,null,null,"=","-","-"]
[null,"","","","1.7",null,null,null,null,null,null,null,null,null,null,null,"=","-","-"]
[null,"","","","1.8",null,null,null,null,null,null,null,null,null,null,null,"=","-","-"]
[null,"","","","1.9",null,null,null,null,null,null,null,null,null,null,null,"=","-","-"]
[null,"","","","1.10",null,null,null,null,null,null,null,null,null,null,null,"=","-","-"]
[null,"","","","1.11",null,null,null,null,null,null,null,null,null,null,null,"=","-","-"]
[null,"","","","1.12",null,null,null,null,null,null,null,null,null,null,null,"=","-","-"]
[null,"","","","1.13",null,null,null,null,null,null,null,null,null,null,null,"=","-","-"]
[null,"","","","1.14",null,null,null,null,null,null,null,null,null,null,null,"=","-","-"]
[null,"","","","1.15",null,null,null,null,null,null,null,null,null,null,null,"=","-","-"]
[null,"","","","1.16",null,null,null,null,null,null,null,null,null,null,null,"=","-","-"]
[null,"","","","1.17",null,null,null,null,null,null,null,null,null,null,null,"=","-","-"]
[null,"","","","1.18",null,null,null,null,null,null,null,null,null,null,null,"=","-","-"]
[null,"","","","1.19",null,null,null,null,null,null,null,null,null,null,null,"=","-","-"]
[null,"","","","1.20",null,null,null,null,null,null,null,null,null,null,null,"=","-","-"]
[null,"","","","1.21",null,null,null,null,null,null,null,null,null,null,null,"=","-","-"]
[null,"","","","1.22",null,null,null,null,null,null,null,null,null,null,null,"=","-","-"]
[null,"","","","1.23",null,null,null,null,null,null,null,null,null,null,null,"=","-","-"]
[null,"","","","1.24",null,null,null,null,null,null,null,null,null,null,null,"=","-","-"]
[null,"","","","1.25",null,null,null,null,null,null,null,null,null,null,null,"=","-","-"]
[null,"","","","1.26",null,null,null,null,null,null,null,null,null,null,null,"=","-","-"]
[null,"","","","1.27",null,null,null,null,null,null,null,null,null,null,null,"=","-","-"]
[null,"","","","1.28",null,null,null,null,null,null,null,null,null,null,null,"=","-","-"]
[null,"","","","1.29",null,null,null,null,null,null,null,null,null,null,null,"=","-","-"]
[null,"","","","1.30",null,null,null,null,null,null,null,null,null,null,null,"=","-","-"]
[null,"","","","1.31",null,null,null,null,null,null,null,null,null,null,null,"=","-","-"]
[null,"","","","1.32",null,null,null,null,null,null,null,null,null,null,null,"=","-","-"]
[null,"","","","1.33",null,null,null,null,null,null,null,null,null,null,null,"=","-","-"]
[null,"","","","1.34",null,null,null,null,null,null,null,null,null,null,null,"=","-","-"]
[null,"","","","1.35",null,null,null,null,null,null,null,null,null,null,null,"=","-","-"]
[null,"","","","1.36",null,null,null,null,null,null,null,null,null,null,null,"=","-","-"]
[null,"","","","1.37",null,null,null,null,null,null,null,null,null,null,null,"=","-","-"]
[null,"","","","1.38",null,null,null,null,null,null,null,null,null,null,null,"=","-","-"]
[null,"","","","1.39",null,null,null,null,null,null,null,null,null,null,null,"=","-","-"]
[null,"","","","1.40",null,null,null,null,null,null,null,null,null,null,null,"=","-","-"]
[null,"","","","1.41",null,null,null,null,null,null,null,null,null,null,null,"=","-","-"]
[null,"","","","1.42",null,null,null,null,null,null,null,null,null,null,null,"=","-","-"]
[null,"","","","1.43",null,null,null,null,null,null,null,null,null,null,null,"=","-","-"]
[null,"","","","1.44",null,null,null,null,null,null,null,null,null,null,null,"=","-","-"]
[null,"","","","1.45",null,null,null,null,null,null,null,null,null,null,null,"=","-","-"]
[null,"","","","1.46",null,null,null,null,null,null,null,null,null,null,null,"=","-","-"]
[null,"","","","1.47",null,null,null,null,null,null,null,null,null,null,null,"=","-","-"]
[null,"","","","1.48",null,null,null,null,null,null,null,null,null,null,null,"=","-","-"]
[null,"","","","1.49",null,null,null,null,null,null,null,null,null,null,null,"=","-","-"]
[null,"","","","1.50",null,null,null,null,null,null,null,null,null,null,null,"=","-","-"]
[null,"","","","2.","Сетевая вода",{"$f":"IF(COUNTBLANK(G63:G102)<40,\"Х\",\"-\")","v":"-"},{"$f":"IF(COUNTBLANK(H63:H102)<40,\"Х\",\"-\")","v":"-"},"-",null,null,null,null,null,null,null,"=",null,"**"]
[null,"","","","2.1",null,null,null,null,null,null,null,null,null,null,null,"=","-","-"]
[null,"","","","2.2",null,null,null,null,null,null,null,null,null,null,null,"=","-","-"]
[null,"","","","2.3",null,null,null,null,null,null,null,null,null,null,null,"=","-","-"]
[null,"","","","2.4",null,null,null,null,null,null,null,null,null,null,null,"=","-","-"]
[null,"","","","2.5",null,null,null,null,null,null,null,null,null,null,null,"=","-","-"]
[null,"","","","2.6",null,null,null,null,null,null,null,null,null,null,null,"=","-","-"]
[null,"","","","2.7",null,null,null,null,null,null,null,null,null,null,null,"=","-","-"]
[null,"","","","2.8",null,null,null,null,null,null,null,null,null,null,null,"=","-","-"]
[null,"","","","2.9",null,null,null,null,null,null,null,null,null,null,null,"=","-","-"]
[null,"","","","2.10",null,null,null,null,null,null,null,null,null,null,null,"=","-","-"]
[null,"","","","2.11",null,null,null,null,null,null,null,null,null,null,null,"=","-","-"]
[null,"","","","2.12",null,null,null,null,null,null,null,null,null,null,null,"=","-","-"]
[null,"","","","2.13",null,null,null,null,null,null,null,null,null,null,null,"=","-","-"]
[null,"","","","2.14",null,null,null,null,null,null,null,null,null,null,null,"=","-","-"]
[null,{"$f":"RIGHT(N77,3)","v":""},{"$f":"MID(N77,1,5)","v":""},{"$f":"MID(N77,1,6)","v":""},"2.15",null,null,null,null,null,null,null,null,null,null,null,"=",{"$f":"IFERROR(P77*Q77,\"-\")","v":"-"},{"$f":"IF(F77&G77&H77&I77&J77&K77&L77&M77&N77&O77&P77=\"\",\"-\",\"**\")","v":"-"}]
[null,"","","","2.16",null,null,null,null,null,null,null,null,null,null,null,"=","-","-"]
[null,"","","","2.17",null,null,null,null,null,null,null,null,null,null,null,"=","-","-"]
[null,"","","","2.18",null,null,null,null,null,null,null,null,null,null,null,"=","-","-"]
[null,"","","","2.19",null,null,null,null,null,null,null,null,null,null,null,"=","-","-"]
[null,"","","","2.20",null,null,null,null,null,null,null,null,null,null,null,"=","-","-"]
[null,"","","","2.21",null,null,null,null,null,null,null,null,null,null,null,"=","-","-"]
[null,"","","","2.22",null,null,null,null,null,null,null,null,null,null,null,"=","-","-"]
[null,"","","","2.23",null,null,null,null,null,null,null,null,null,null,null,"=","-","-"]
[null,"","","","2.24",null,null,null,null,null,null,null,null,null,null,null,"=","-","-"]
[null,"","","","2.25",null,null,null,null,null,null,null,null,null,null,null,"=","-","-"]
[null,"","","","2.26",null,null,null,null,null,null,null,null,null,null,null,"=","-","-"]
[null,"","","","2.27",null,null,null,null,null,null,null,null,null,null,null,"=","-","-"]
[null,"","","","2.28",null,null,null,null,null,null,null,null,null,null,null,"=","-","-"]
[null,"","","","2.29",null,null,null,null,null,null,null,null,null,null,null,"=","-","-"]
[null,"","","","2.30",null,null,null,null,null,null,null,null,null,null,null,"=","-","-"]
[null,"","","","2.31",null,null,null,null,null,null,null,null,null,null,null,"=","-","-"]
[null,"","","","2.32",null,null,null,null,null,null,null,null,null,null,null,"=","-","-"]
[null,"","","","2.33",null,null,null,null,null,null,null,null,null,null,null,"=","-","-"]
[null,"","","","2.34",null,null,null,null,null,null,null,null,null,null,null,"=","-","-"]
[null,"","","","2.35",null,null,null,null,null,null,null,null,null,null,null,"=","-","-"]
[null,"","","","2.36",null,null,null,null,null,null,null,null,null,null,null,"=","-","-"]
[null,"","","","2.37",null,null,null,null,null,null,null,null,null,null,null,"=","-","-"]
[null,"","","","2.38",null,null,null,null,null,null,null,null,null,null,null,"=","-","-"]
[null,"","","","2.39",null,null,null,null,null,null,null,null,null,null,null,"=","-","-"]
[null,"","","","2.40",null,null,null,null,null,null,null,null,null,null,null,"=","-","-"]
[null,"","","","3.","Насосная",null,null,null,null,null,null,null,null,null,null,"=",null,"**"]
[null,"","","","3.1.1","Насос №1 ",{"$f":"IF(COUNTBLANK(G105:G133)<29,\"Х\",\"-\")","v":"-"},{"$f":"IF(COUNTBLANK(H105:H133)<29,\"Х\",\"-\")","v":"-"},"-",null,null,null,null,null,null,null,"=",null,"**"]
[null,"","","","3.1.2",null,null,null,null,null,null,null,null,null,null,null,"=","-","-"]
[null,"","","","3.1.3",null,null,null,null,null,null,null,null,null,null,null,"=","-","-"]
[null,"","","","3.1.4",null,null,null,null,null,null,null,null,null,null,null,"=","-","-"]
[null,"","","","3.1.5",null,null,null,null,null,null,null,null,null,null,null,"=","-","-"]
[null,"","","","3.1.6",null,null,null,null,null,null,null,null,null,null,null,"=","-","-"]
[null,"","","","3.1.7",null,null,null,null,null,null,null,null,null,null,null,"=","-","-"]
[null,"","","","3.1.8",null,null,null,null,null,null,null,null,null,null,null,"=","-","-"]
[null,"","","","3.1.9",null,null,null,null,null,null,null,null,null,null,null,"=","-","-"]
[null,"","","","3.1.10",null,null,null,null,null,null,null,null,null,null,null,"=","-","-"]
[null,"","","","3.1.11",null,null,null,null,null,null,null,null,null,null,null,"=","-","-"]
[null,"","","","3.1.12",null,null,null,null,null,null,null,null,null,null,null,"=","-","-"]
[null,"","","","3.1.13",null,null,null,null,null,null,null,null,null,null,null,"=","-","-"]
[null,"","","","3.1.14",null,null,null,null,null,null,null,null,null,null,null,"=","-","-"]
[null,"","","","3.1.15",null,null,null,null,null,null,null,null,null,null,null,"=","-","-"]
[null,"","","","3.1.16",null,null,null,null,null,null,null,null,null,null,null,"=","-","-"]
[null,"","","","3.1.17",null,null,null,null,null,null,null,null,null,null,null,"=","-","-"]
[null,"","","","3.1.18",null,null,null,null,null,null,null,null,null,null,null,"=","-","-"]
[null,"","","","3.1.19",null,null,null,null,null,null,null,null,null,null,null,"=","-","-"]
[null,"","","","3.1.20",null,null,null,null,null,null,null,null,null,null,null,"=","-","-"]
[null,"","","","3.1.21",null,null,null,null,null,null,null,null,null,null,null,"=","-","-"]
[null,"","","","3.1.22",null,null,null,null,null,null,null,null,null,null,null,"=","-","-"]
[null,"","","","3.1.23",null,null,null,null,null,null,null,null,null,null,null,"=","-","-"]
[null,"","","","3.1.24",null,null,null,null,null,null,null,null,null,null,null,"=","-","-"]
[null,"","","","3.1.25",null,null,null,null,null,null,null,null,null,null,null,"=","-","-"]
[null,"","","","3.1.26",null,null,null,null,null,null,null,null,null,null,null,"=","-","-"]
[null,"","","","3.1.27",null,null,null,null,null,null,null,null,null,null,null,"=","-","-"]
[null,"","","","3.1.28",null,null,null,null,null,null,null,null,null,null,null,"=","-","-"]
[null,"","","","3.1.29",null,null,null,null,null,null,null,null,null,null,null,"=","-","-"]
[null,"","","","3.1.30",null,null,null,null,null,null,null,null,null,null,null,"=","-","-"]
[null,"","","","3.2.1","Насос №2 ",{"$f":"IF(COUNTBLANK(G135:G163)<29,\"Х\",\"-\")","v":"-"},{"$f":"IF(COUNTBLANK(H135:H163)<29,\"Х\",\"-\")","v":"-"},"-",null,null,null,null,null,null,null,"=",null,"**"]
[null,"","","","3.2.2",null,null,null,null,null,null,null,null,null,null,null,"=","-","-"]
[null,"","","","3.2.3",null,null,null,null,null,null,null,null,null,null,null,"=","-","-"]
[null,"","","","3.2.4",null,null,null,null,null,null,null,null,null,null,null,"=","-","-"]
[null,"","","","3.2.5",null,null,null,null,null,null,null,null,null,null,null,"=","-","-"]
[null,"","","","3.2.6",null,null,null,null,null,null,null,null,null,null,null,"=","-","-"]
[null,"","","","3.2.7",null,null,null,null,null,null,null,null,null,null,null,"=","-","-"]
[null,{"$f":"RIGHT(N141,3)","v":""},{"$f":"MID(N141,1,5)","v":""},{"$f":"MID(N141,1,6)","v":""},"3.2.8",null,null,null,null,null,null,null,null,null,null,null,"=",{"$f":"IFERROR(P141*Q141,\"-\")","v":"-"},{"$f":"IF(F141&G141&H141&I141&J141&K141&L141&M141&N141&O141&P141=\"\",\"-\",\"**\")","v":"-"}]
[null,"","","","3.2.9",null,null,null,null,null,null,null,null,null,null,null,"=","-","-"]
[null,"","","","3.2.10",null,null,null,null,null,null,null,null,null,null,null,"=","-","-"]
[null,"","","","3.2.11",null,null,null,null,null,null,null,null,null,null,null,"=","-","-"]
[null,"","","","3.2.12",null,null,null,null,null,null,null,null,null,null,null,"=","-","-"]
[null,"","","","3.2.13",null,null,null,null,null,null,null,null,null,null,null,"=","-","-"]
[null,"","","","3.2.14",null,null,null,null,null,null,null,null,null,null,null,"=","-","-"]
[null,"","","","3.2.15",null,null,null,null,null,null,null,null,null,null,null,"=","-","-"]
[null,"","","","3.2.16",null,null,null,null,null,null,null,null,null,null,null,"=","-","-"]
[null,"","","","3.2.17",null,null,null,null,null,null,null,null,null,null,null,"=","-","-"]
[null,"","","","3.2.18",null,null,null,null,null,null,null,null,null,null,null,"=","-","-"]
[null,"","","","3.2.19",null,null,null,null,null,null,null,null,null,null,null,"=","-","-"]
[null,"","","","3.2.20",null,null,null,null,null,null,null,null,null,null,null,"=","-","-"]
[null,"","","","3.2.21",null,null,null,null,null,null,null,null,null,null,null,"=","-","-"]
[null,"","","","3.2.22",null,null,null,null,null,null,null,null,null,null,null,"=","-","-"]
[null,"","","","3.2.23",null,null,null,null,null,null,null,null,null,null,null,"=","-","-"]
[null,"","","","3.2.24",null,null,null,null,null,null,null,null,null,null,null,"=","-","-"]
[null,"","","","3.2.25",null,null,null,null,null,null,null,null,null,null,null,"=","-","-"]
[null,"","","","3.2.26",null,null,null,null,null,null,null,null,null,null,null,"=","-","-"]
[null,"","","","3.2.27",null,null,null,null,null,null,null,null,null,null,null,"=","-","-"]
[null,"","","","3.2.28",null,null,null,null,null,null,null,null,null,null,null,"=","-","-"]
[null,"","","","3.2.29",null,null,null,null,null,null,null,null,null,null,null,"=","-","-"]
[null,"","","","3.2.30",null,null,null,null,null,null,null,null,null,null,null,"=","-","-"]
[null,"","","","3.3.1","Насос №3",{"$f":"IF(COUNTBLANK(G165:G193)<29,\"Х\",\"-\")","v":"-"},{"$f":"IF(COUNTBLANK(H165:H193)<29,\"Х\",\"-\")","v":"-"},"-",null,null,null,null,null,null,null,"=",null,"**"]
[null,"","","","3.3.2",null,null,null,null,null,null,null,null,null,null,null,"=",{"$f":"IFERROR(P165*Q165,\"-\")","v":"-"},"-"]
[null,"","","","3.3.3",null,null,null,null,null,null,null,null,null,null,null,"=","-","-"]
[null,"","","","3.3.4",null,null,null,null,null,null,null,null,null,null,null,"=","-","-"]
[null,"","","","3.3.5",null,null,null,null,null,null,null,null,null,null,null,"=","-","-"]
[null,"","","","3.3.6",null,null,null,null,null,null,null,null,null,null,null,"=","-","-"]
[null,"","","","3.3.7",null,null,null,null,null,null,null,null,null,null,null,"=","-","-"]
[null,"","","","3.3.8",null,null,null,null,null,null,null,null,null,null,null,"=","-","-"]
[null,"","","","3.3.9",null,null,null,null,null,null,null,null,null,null,null,"=","-","-"]
[null,"","","","3.3.10",null,null,null,null,null,null,null,null,null,null,null,"=","-","-"]
[null,"","","","3.3.11",null,null,null,null,null,null,null,null,null,null,null,"=","-","-"]
[null,"","","","3.3.12",null,null,null,null,null,null,null,null,null,null,null,"=","-","-"]
[null,"","","","3.3.13",null,null,null,null,null,null,null,null,null,null,null,"=","-","-"]
[null,"","","","3.3.14",null,null,null,null,null,null,null,null,null,null,null,"=","-","-"]
[null,"","","","3.3.15",null,null,null,null,null,null,null,null,null,null,null,"=","-","-"]
[null,"","","","3.3.16",null,null,null,null,null,null,null,null,null,null,null,"=","-","-"]
[null,"","","","3.3.17",null,null,null,null,null,null,null,null,null,null,null,"=","-","-"]
[null,"","","","3.3.18",null,null,null,null,null,null,null,null,null,null,null,"=","-","-"]
[null,"","","","3.3.19",null,null,null,null,null,null,null,null,null,null,null,"=","-","-"]
[null,"","","","3.3.20",null,null,null,null,null,null,null,null,null,null,null,"=","-","-"]
[null,"","","","3.3.21",null,null,null,null,null,null,null,null,null,null,null,"=","-","-"]
[null,"","","","3.3.22",null,null,null,null,null,null,null,null,null,null,null,"=","-","-"]
[null,"","","","3.3.23",null,null,null,null,null,null,null,null,null,null,null,"=","-","-"]
[null,"","","","3.3.24",null,null,null,null,null,null,null,null,null,null,null,"=","-","-"]
[null,"","","","3.3.25",null,null,null,null,null,null,null,null,null,null,null,"=","-","-"]
[null,"","","","3.3.26",null,null,null,null,null,null,null,null,null,null,null,"=","-","-"]
[null,"","","","3.3.27",null,null,null,null,null,null,null,null,null,null,null,"=","-","-"]
[null,"","","","3.3.28",null,null,null,null,null,null,null,null,null,null,null,"=","-","-"]
[null,"","","","3.3.29",null,null,null,null,null,null,null,null,null,null,null,"=","-","-"]
[null,"","","","3.3.30",null,null,null,null,null,null,null,null,null,null,null,"=","-","-"]
[null,"","","","3.4.1","Насос №4",{"$f":"IF(COUNTBLANK(G195:G223)<29,\"Х\",\"-\")","v":"-"},{"$f":"IF(COUNTBLANK(H195:H223)<29,\"Х\",\"-\")","v":"-"},"-",null,null,null,null,null,null,null,"=",null,"**"]
[null,"","","","3.4.2",null,null,null,null,null,null,null,null,null,null,null,"=","-","-"]
[null,"","","","3.4.3",null,null,null,null,null,null,null,null,null,null,null,"=","-","-"]
[null,"","","","3.4.4",null,null,null,null,null,null,null,null,null,null,null,"=","-","-"]
[null,"","","","3.4.5",null,null,null,null,null,null,null,null,null,null,null,"=","-","-"]
[null,"","","","3.4.6",null,null,null,null,null,null,null,null,null,null,null,"=","-","-"]
[null,"","","","3.4.7",null,null,null,null,null,null,null,null,null,null,null,"=","-","-"]
[null,"","","","3.4.8",null,null,null,null,null,null,null,null,null,null,null,"=","-","-"]
[null,"","","","3.4.9",null,null,null,null,null,null,null,null,null,null,null,"=","-","-"]
[null,"","","","3.4.10",null,null,null,null,null,null,null,null,null,null,null,"=","-","-"]
[null,"","","","3.4.11",null,null,null,null,null,null,null,null,null,null,null,"=","-","-"]
[null,{"$f":"RIGHT(N205,3)","v":""},{"$f":"MID(N205,1,5)","v":""},{"$f":"MID(N205,1,6)","v":""},"3.4.12",null,null,null,null,null,null,null,null,null,null,null,"=",{"$f":"IFERROR(P205*Q205,\"-\")","v":"-"},{"$f":"IF(F205&G205&H205&I205&J205&K205&L205&M205&N205&O205&P205=\"\",\"-\",\"**\")","v":"-"}]
[null,"","","","3.4.13",null,null,null,null,null,null,null,null,null,null,null,"=","-","-"]
[null,"","","","3.4.14",null,null,null,null,null,null,null,null,null,null,null,"=","-","-"]
[null,"","","","3.4.15",null,null,null,null,null,null,null,null,null,null,null,"=","-","-"]
[null,"","","","3.4.16",null,null,null,null,null,null,null,null,null,null,null,"=","-","-"]
[null,"","","","3.4.17",null,null,null,null,null,null,null,null,null,null,null,"=","-","-"]
[null,"","","","3.4.18",null,null,null,null,null,null,null,null,null,null,null,"=","-","-"]
[null,"","","","3.4.19",null,null,null,null,null,null,null,null,null,null,null,"=","-","-"]
[null,"","","","3.4.20",null,null,null,null,null,null,null,null,null,null,null,"=","-","-"]
[null,"","","","3.4.21",null,null,null,null,null,null,null,null,null,null,null,"=","-","-"]
[null,"","","","3.4.22",null,null,null,null,null,null,null,null,null,null,null,"=","-","-"]
[null,"","","","3.4.23",null,null,null,null,null,null,null,null,null,null,null,"=","-","-"]
[null,"","","","3.4.24",null,null,null,null,null,null,null,null,null,null,null,"=","-","-"]
[null,"","","","3.4.25",null,null,null,null,null,null,null,null,null,null,null,"=","-","-"]
[null,"","","","3.4.26",null,null,null,null,null,null,null,null,null,null,null,"=","-","-"]
[null,"","","","3.4.27",null,null,null,null,null,null,null,null,null,null,null,"=","-","-"]
[null,"","","","3.4.28",null,null,null,null,null,null,null,null,null,null,null,"=","-","-"]
[null,"","","","3.4.29",null,null,null,null,null,null,null,null,null,null,null,"=","-","-"]
[null,"","","","3.4.30",null,null,null,null,null,null,null,null,null,null,null,"=","-","-"]
[null,"","","","3.5.1","Насос №5",{"$f":"IF(COUNTBLANK(G225:G253)<29,\"Х\",\"-\")","v":"-"},{"$f":"IF(COUNTBLANK(H225:H253)<29,\"Х\",\"-\")","v":"-"},"-",null,null,null,null,null,null,null,"=",null,"**"]
[null,"","","","3.5.2",null,null,null,null,null,null,null,null,null,null,null,"=","-","-"]
[null,"","","","3.5.3",null,null,null,null,null,null,null,null,null,null,null,"=","-","-"]
[null,"","","","3.5.4",null,null,null,null,null,null,null,null,null,null,null,"=","-","-"]
[null,"","","","3.5.5",null,null,null,null,null,null,null,null,null,null,null,"=","-","-"]
[null,"","","","3.5.6",null,null,null,null,null,null,null,null,null,null,null,"=","-","-"]
[null,"","","","3.5.7",null,null,null,null,null,null,null,null,null,null,null,"=","-","-"]
[null,"","","","3.5.8",null,null,null,null,null,null,null,null,null,null,null,"=","-","-"]
[null,"","","","3.5.9",null,null,null,null,null,null,null,null,null,null,null,"=","-","-"]
[null,"","","","3.5.10",null,null,null,null,null,null,null,null,null,null,null,"=","-","-"]
[null,"","","","3.5.11",null,null,null,null,null,null,null,null,null,null,null,"=","-","-"]
[null,"","","","3.5.12",null,null,null,null,null,null,null,null,null,null,null,"=","-","-"]
[null,"","","","3.5.13",null,null,null,null,null,null,null,null,null,null,null,"=","-","-"]
[null,"","","","3.5.14",null,null,null,null,null,null,null,null,null,null,null,"=","-","-"]
[null,"","","","3.5.15",null,null,null,null,null,null,null,null,null,null,null,"=","-","-"]
[null,"","","","3.5.16",null,null,null,null,null,null,null,null,null,null,null,"=","-","-"]
[null,"","","","3.5.17",null,null,null,null,null,null,null,null,null,null,null,"=","-","-"]
[null,"","","","3.5.18",null,null,null,null,null,null,null,null,null,null,null,"=","-","-"]
[null,"","","","3.5.19",null,null,null,null,null,null,null,null,null,null,null,"=","-","-"]
[null,"","","","3.5.20",null,null,null,null,null,null,null,null,null,null,null,"=","-","-"]
[null,"","","","3.5.21",null,null,null,null,null,null,null,null,null,null,null,"=","-","-"]
[null,"","","","3.5.22",null,null,null,null,null,null,null,null,null,null,null,"=","-","-"]
[null,"","","","3.5.23",null,null,null,null,null,null,null,null,null,null,null,"=","-","-"]
[null,"","","","3.5.24",null,null,null,null,null,null,null,null,null,null,null,"=","-","-"]
[null,"","","","3.5.25",null,null,null,null,null,null,null,null,null,null,null,"=","-","-"]
[null,"","","","3.5.26",null,null,null,null,null,null,null,null,null,null,null,"=","-","-"]
[null,"","","","3.5.27",null,null,null,null,null,null,null,null,null,null,null,"=","-","-"]
[null,"","","","3.5.28",null,null,null,null,null,null,null,null,null,null,null,"=","-","-"]
[null,"","","","3.5.29",null,null,null,null,null,null,null,null,null,null,null,"=","-","-"]
[null,"","","","3.5.30",null,null,null,null,null,null,null,null,null,null,null,"=","-","-"]
[null,"","","","3.6.1","Насос №6",{"$f":"IF(COUNTBLANK(G255:G283)<29,\"Х\",\"-\")","v":"-"},{"$f":"IF(COUNTBLANK(H255:H283)<29,\"Х\",\"-\")","v":"-"},"-",null,null,null,null,null,null,null,"=",null,"**"]
[null,"","","","3.6.2",null,null,null,null,null,null,null,null,null,null,null,"=","-","-"]
[null,"","","","3.6.3",null,null,null,null,null,null,null,null,null,null,null,"=","-","-"]
[null,"","","","3.6.4",null,null,null,null,null,null,null,null,null,null,null,"=","-","-"]
[null,"","","","3.6.5",null,null,null,null,null,null,null,null,null,null,null,"=","-","-"]
[null,"","","","3.6.6",null,null,null,null,null,null,null,null,null,null,null,"=","-","-"]
[null,"","","","3.6.7",null,null,null,null,null,null,null,null,null,null,null,"=","-","-"]
[null,"","","","3.6.8",null,null,null,null,null,null,null,null,null,null,null,"=","-","-"]
[null,"","","","3.6.9",null,null,null,null,null,null,null,null,null,null,null,"=","-","-"]
[null,"","","","3.6.10",null,null,null,null,null,null,null,null,null,null,null,"=","-","-"]
[null,"","","","3.6.11",null,null,null,null,null,null,null,null,null,null,null,"=","-","-"]
[null,"","","","3.6.12",null,null,null,null,null,null,null,null,null,null,null,"=","-","-"]
[null,"","","","3.6.13",null,null,null,null,null,null,null,null,null,null,null,"=","-","-"]
[null,"","","","3.6.14",null,null,null,null,null,null,null,null,null,null,null,"=","-","-"]
[null,"","","","3.6.15",null,null,null,null,null,null,null,null,null,null,null,"=","-","-"]
[null,{"$f":"RIGHT(N269,3)","v":""},{"$f":"MID(N269,1,5)","v":""},{"$f":"MID(N269,1,6)","v":""},"3.6.16",null,null,null,null,null,null,null,null,null,null,null,"=",{"$f":"IFERROR(P269*Q269,\"-\")","v":"-"},{"$f":"IF(F269&G269&H269&I269&J269&K269&L269&M269&N269&O269&P269=\"\",\"-\",\"**\")","v":"-"}]
[null,"","","","3.6.17",null,null,null,null,null,null,null,null,null,null,null,"=","-","-"]
[null,"","","","3.6.18",null,null,null,null,null,null,null,null,null,null,null,"=","-","-"]
[null,"","","","3.6.19",null,null,null,null,null,null,null,null,null,null,null,"=","-","-"]
[null,"","","","3.6.20",null,null,null,null,null,null,null,null,null,null,null,"=","-","-"]
[null,"","","","3.6.21",null,null,null,null,null,null,null,null,null,null,null,"=","-","-"]
[null,"","","","3.6.22",null,null,null,null,null,null,null,null,null,null,null,"=","-","-"]
[null,"","","","3.6.23",null,null,null,null,null,null,null,null,null,null,null,"=","-","-"]
[null,"","","","3.6.24",null,null,null,null,null,null,null,null,null,null,null,"=","-","-"]
[null,"","","","3.6.25",null,null,null,null,null,null,null,null,null,null,null,"=","-","-"]
[null,"","","","3.6.26",null,null,null,null,null,null,null,null,null,null,null,"=","-","-"]
[null,"","","","3.6.27",null,null,null,null,null,null,null,null,null,null,null,"=","-","-"]
[null,"","","","3.6.28",null,null,null,null,null,null,null,null,null,null,null,"=","-","-"]
[null,"","","","3.6.29",null,null,null,null,null,null,null,null,null,null,null,"=","-","-"]
[null,"","","","3.6.30",null,null,null,null,null,null,null,null,null,null,null,"=","-","-"]
[null,"","","","3.7.1","Насос №7",{"$f":"IF(COUNTBLANK(G285:G313)<29,\"Х\",\"-\")","v":"-"},{"$f":"IF(COUNTBLANK(H285:H313)<29,\"Х\",\"-\")","v":"-"},"-",null,null,null,null,null,null,null,"=",null,"**"]
[null,"","","","3.7.2",null,null,null,null,null,null,null,null,null,null,null,"=","-","-"]
[null,"","","","3.7.3",null,null,null,null,null,null,null,null,null,null,null,"=","-","-"]
[null,"","","","3.7.4",null,null,null,null,null,null,null,null,null,null,null,"=","-","-"]
[null,"","","","3.7.5",null,null,null,null,null,null,null,null,null,null,null,"=","-","-"]
[null,"","","","3.7.6",null,null,null,null,null,null,null,null,null,null,null,"=","-","-"]
[null,"","","","3.7.7",null,null,null,null,null,null,null,null,null,null,null,"=","-","-"]
[null,"","","","3.7.8",null,null,null,null,null,null,null,null,null,null,null,"=","-","-"]
[null,"","","","3.7.9",null,null,null,null,null,null,null,null,null,null,null,"=","-","-"]
[null,"","","","3.7.10",null,null,null,null,null,null,null,null,null,null,null,"=","-","-"]
[null,"","","","3.7.11",null,null,null,null,null,null,null,null,null,null,null,"=","-","-"]
[null,"","","","3.7.12",null,null,null,null,null,null,null,null,null,null,null,"=","-","-"]
[null,"","","","3.7.13",null,null,null,null,null,null,null,null,null,null,null,"=","-","-"]
[null,"","","","3.7.14",null,null,null,null,null,null,null,null,null,null,null,"=","-","-"]
[null,"","","","3.7.15",null,null,null,null,null,null,null,null,null,null,null,"=","-","-"]
[null,"","","","3.7.16",null,null,null,null,null,null,null,null,null,null,null,"=","-","-"]
[null,"","","","3.7.17",null,null,null,null,null,null,null,null,null,null,null,"=","-","-"]
[null,"","","","3.7.18",null,null,null,null,null,null,null,null,null,null,null,"=","-","-"]
[null,"","","","3.7.19",null,null,null,null,null,null,null,null,null,null,null,"=","-","-"]
[null,"","","","3.7.20",null,null,null,null,null,null,null,null,null,null,null,"=","-","-"]
[null,"","","","3.7.21",null,null,null,null,null,null,null,null,null,null,null,"=","-","-"]
[null,"","","","3.7.22",null,null,null,null,null,null,null,null,null,null,null,"=","-","-"]
[null,"","","","3.7.23",null,null,null,null,null,null,null,null,null,null,null,"=","-","-"]
[null,"","","","3.7.24",null,null,null,null,null,null,null,null,null,null,null,"=","-","-"]
[null,"","","","3.7.25",null,null,null,null,null,null,null,null,null,null,null,"=","-","-"]
[null,"","","","3.7.26",null,null,null,null,null,null,null,null,null,null,null,"=","-","-"]
[null,"","","","3.7.27",null,null,null,null,null,null,null,null,null,null,null,"=","-","-"]
[null,"","","","3.7.28",null,null,null,null,null,null,null,null,null,null,null,"=","-","-"]
[null,"","","","3.7.29",null,null,null,null,null,null,null,null,null,null,null,"=","-","-"]
[null,"","","","3.7.30",null,null,null,null,null,null,null,null,null,null,null,"=","-","-"]
[null,"","","","4.","Котлоагрегаты",null,null,null,null,null,null,null,null,null,null,"=",null,"**"]
[null,"","","","4.1.1","Котел №1",{"$f":"IF(COUNTBLANK(G316:G354)<39,\"Х\",\"-\")","v":"-"},{"$f":"IF(COUNTBLANK(H316:H354)<39,\"Х\",\"-\")","v":"-"},"-",null,null,null,null,null,null,null,"=",null,"**"]
[null,"","","","4.1.2",null,null,null,null,null,null,null,null,null,null,null,"=","-","-"]
[null,"","","","4.1.3",null,null,null,null,null,null,null,null,null,null,null,"=","-","-"]
[null,"","","","4.1.4",null,null,null,null,null,null,null,null,null,null,null,"=","-","-"]
[null,"","","","4.1.5",null,null,null,null,null,null,null,null,null,null,null,"=","-","-"]
[null,"","","","4.1.6",null,null,null,null,null,null,null,null,null,null,null,"=","-","-"]
[null,"","","","4.1.7",null,null,null,null,null,null,null,null,null,null,null,"=","-","-"]
[null,"","","","4.1.8",null,null,null,null,null,null,null,null,null,null,null,"=","-","-"]
[null,"","","","4.1.9",null,null,null,null,null,null,null,null,null,null,null,"=","-","-"]
[null,"","","","4.1.10",null,null,null,null,null,null,null,null,null,null,null,"=","-","-"]
[null,"","","","4.1.11",null,null,null,null,null,null,null,null,null,null,null,"=","-","-"]
[null,"","","","4.1.12",null,null,null,null,null,null,null,null,null,null,null,"=","-","-"]
[null,"","","","4.1.13",null,null,null,null,null,null,null,null,null,null,null,"=","-","-"]
[null,"","","","4.1.14",null,null,null,null,null,null,null,null,null,null,null,"=","-","-"]
[null,"","","","4.1.15",null,null,null,null,null,null,null,null,null,null,null,"=","-","-"]
[null,"","","","4.1.16",null,null,null,null,null,null,null,null,null,null,null,"=","-","-"]
[null,"","","","4.1.17",null,null,null,null,null,null,null,null,null,null,null,"=","-","-"]
[null,"","","","4.1.18",null,null,null,null,null,null,null,null,null,null,null,"=","-","-"]
[null,{"$f":"RIGHT(N333,3)","v":""},{"$f":"MID(N333,1,5)","v":""},{"$f":"MID(N333,1,6)","v":""},"4.1.19",null,null,null,null,null,null,null,null,null,null,null,"=",{"$f":"IFERROR(P333*Q333,\"-\")","v":"-"},{"$f":"IF(F333&G333&H333&I333&J333&K333&L333&M333&N333&O333&P333=\"\",\"-\",\"**\")","v":"-"}]
[null,"","","","4.1.20",null,null,null,null,null,null,null,null,null,null,null,"=","-","-"]
[null,"","","","4.1.21",null,null,null,null,null,null,null,null,null,null,null,"=","-","-"]
[null,"","","","4.1.22",null,null,null,null,null,null,null,null,null,null,null,"=","-","-"]
[null,"","","","4.1.23",null,null,null,null,null,null,null,null,null,null,null,"=","-","-"]
[null,"","","","4.1.24",null,null,null,null,null,null,null,null,null,null,null,"=","-","-"]
[null,"","","","4.1.25",null,null,null,null,null,null,null,null,null,null,null,"=","-","-"]
[null,"","","","4.1.26",null,null,null,null,null,null,null,null,null,null,null,"=","-","-"]
[null,"","","","4.1.27",null,null,null,null,null,null,null,null,null,null,null,"=","-","-"]
[null,"","","","4.1.28",null,null,null,null,null,null,null,null,null,null,null,"=","-","-"]
[null,"","","","4.1.29",null,null,null,null,null,null,null,null,null,null,null,"=","-","-"]
[null,"","","","4.1.30",null,null,null,null,null,null,null,null,null,null,null,"=","-","-"]
[null,"","","","4.1.31",null,null,null,null,null,null,null,null,null,null,null,"=","-","-"]
[null,"","","","4.1.32",null,null,null,null,null,null,null,null,null,null,null,"=","-","-"]
[null,"","","","4.1.33",null,null,null,null,null,null,null,null,null,null,null,"=","-","-"]
[null,"","","","4.1.34",null,null,null,null,null,null,null,null,null,null,null,"=","-","-"]
[null,"","","","4.1.35",null,null,null,null,null,null,null,null,null,null,null,"=","-","-"]
[null,"","","","4.1.36",null,null,null,null,null,null,null,null,null,null,null,"=","-","-"]
[null,"","","","4.1.37",null,null,null,null,null,null,null,null,null,null,null,"=","-","-"]
[null,"","","","4.1.38",null,null,null,null,null,null,null,null,null,null,null,"=","-","-"]
[null,"","","","4.1.39",null,null,null,null,null,null,null,null,null,null,null,"=","-","-"]
[null,"","","","4.1.40",null,null,null,null,null,null,null,null,null,null,null,"=","-","-"]
[null,"","","","4.2.1","Котел №2  ",{"$f":"IF(COUNTBLANK(G356:G394)<39,\"Х\",\"-\")","v":"-"},{"$f":"IF(COUNTBLANK(H356:H394)<39,\"Х\",\"-\")","v":"-"},"-",null,null,null,null,null,null,null,"=",null,"**"]
[null,"","","","4.2.2",null,null,null,null,null,null,null,null,null,null,null,"=","-","-"]
[null,"","","","4.2.3",null,null,null,null,null,null,null,null,null,null,null,"=","-","-"]
[null,"","","","4.2.4",null,null,null,null,null,null,null,null,null,null,null,"=","-","-"]
[null,"","","","4.2.5",null,null,null,null,null,null,null,null,null,null,null,"=","-","-"]
[null,"","","","4.2.6",null,null,null,null,null,null,null,null,null,null,null,"=","-","-"]
[null,"","","","4.2.7",null,null,null,null,null,null,null,null,null,null,null,"=","-","-"]
[null,"","","","4.2.8",null,null,null,null,null,null,null,null,null,null,null,"=","-","-"]
[null,"","","","4.2.9",null,null,null,null,null,null,null,null,null,null,null,"=","-","-"]
[null,"","","","4.2.10",null,null,null,null,null,null,null,null,null,null,null,"=","-","-"]
[null,"","","","4.2.11",null,null,null,null,null,null,null,null,null,null,null,"=","-","-"]
[null,"","","","4.2.12",null,null,null,null,null,null,null,null,null,null,null,"=","-","-"]
[null,"","","","4.2.13",null,null,null,null,null,null,null,null,null,null,null,"=","-","-"]
[null,"","","","4.2.14",null,null,null,null,null,null,null,null,null,null,null,"=","-","-"]
[null,"","","","4.2.15",null,null,null,null,null,null,null,null,null,null,null,"=","-","-"]
[null,"","","","4.2.16",null,null,null,null,null,null,null,null,null,null,null,"=","-","-"]
[null,"","","","4.2.17",null,null,null,null,null,null,null,null,null,null,null,"=","-","-"]
[null,"","","","4.2.18",null,null,null,null,null,null,null,null,null,null,null,"=","-","-"]
[null,"","","","4.2.19",null,null,null,null,null,null,null,null,null,null,null,"=","-","-"]
[null,"","","","4.2.20",null,null,null,null,null,null,null,null,null,null,null,"=","-","-"]
[null,"","","","4.2.21",null,null,null,null,null,null,null,null,null,null,null,"=","-","-"]
[null,"","","","4.2.22",null,null,null,null,null,null,null,null,null,null,null,"=","-","-"]
[null,"","","","4.2.23",null,null,null,null,null,null,null,null,null,null,null,"=","-","-"]
[null,"","","","4.2.24",null,null,null,null,null,null,null,null,null,null,null,"=","-","-"]
[null,"","","","4.2.25",null,null,null,null,null,null,null,null,null,null,null,"=","-","-"]
[null,"","","","4.2.26",null,null,null,null,null,null,null,null,null,null,null,"=","-","-"]
[null,"","","","4.2.27",null,null,null,null,null,null,null,null,null,null,null,"=","-","-"]
[null,"","","","4.2.28",null,null,null,null,null,null,null,null,null,null,null,"=","-","-"]
[null,"","","","4.2.29",null,null,null,null,null,null,null,null,null,null,null,"=","-","-"]
[null,"","","","4.2.30",null,null,null,null,null,null,null,null,null,null,null,"=","-","-"]
[null,"","","","4.2.31",null,null,null,null,null,null,null,null,null,null,null,"=","-","-"]
[null,"","","","4.2.32",null,null,null,null,null,null,null,null,null,null,null,"=","-","-"]
[null,"","","","4.2.33",null,null,null,null,null,null,null,null,null,null,null,"=","-","-"]
[null,"","","","4.2.34",null,null,null,null,null,null,null,null,null,null,null,"=","-","-"]
[null,"","","","4.2.35",null,null,null,null,null,null,null,null,null,null,null,"=","-","-"]
[null,"","","","4.2.36",null,null,null,null,null,null,null,null,null,null,null,"=","-","-"]
[null,"","","","4.2.37",null,null,null,null,null,null,null,null,null,null,null,"=","-","-"]
[null,"","","","4.2.38",null,null,null,null,null,null,null,null,null,null,null,"=","-","-"]
[null,"","","","4.2.39",null,null,null,null,null,null,null,null,null,null,null,"=","-","-"]
[null,"","","","4.2.40",null,null,null,null,null,null,null,null,null,null,null,"=","-","-"]
[null,"","","","4.3.1","Котел №3",{"$f":"IF(COUNTBLANK(G396:G434)<39,\"Х\",\"-\")","v":"-"},{"$f":"IF(COUNTBLANK(H396:H434)<39,\"Х\",\"-\")","v":"-"},"-",null,null,null,null,null,null,null,"=",null,"**"]
[null,"","","","4.3.2",null,null,null,null,null,null,null,null,null,null,null,"=","-","-"]
[null,{"$f":"RIGHT(N397,3)","v":""},{"$f":"MID(N397,1,5)","v":""},{"$f":"MID(N397,1,6)","v":""},"4.3.3",null,null,null,null,null,null,null,null,null,null,null,"=",{"$f":"IFERROR(P397*Q397,\"-\")","v":"-"},{"$f":"IF(F397&G397&H397&I397&J397&K397&L397&M397&N397&O397&P397=\"\",\"-\",\"**\")","v":"-"}]
[null,"","","","4.3.4",null,null,null,null,null,null,null,null,null,null,null,"=","-","-"]
[null,"","","","4.3.5",null,null,null,null,null,null,null,null,null,null,null,"=","-","-"]
[null,"","","","4.3.6",null,null,null,null,null,null,null,null,null,null,null,"=","-","-"]
[null,"","","","4.3.7",null,null,null,null,null,null,null,null,null,null,null,"=","-","-"]
[null,"","","","4.3.8",null,null,null,null,null,null,null,null,null,null,null,"=","-","-"]
[null,"","","","4.3.9",null,null,null,null,null,null,null,null,null,null,null,"=","-","-"]
[null,"","","","4.3.10",null,null,null,null,null,null,null,null,null,null,null,"=","-","-"]
[null,"","","","4.3.11",null,null,null,null,null,null,null,null,null,null,null,"=","-","-"]
[null,"","","","4.3.12",null,null,null,null,null,null,null,null,null,null,null,"=","-","-"]
[null,"","","","4.3.13",null,null,null,null,null,null,null,null,null,null,null,"=","-","-"]
[null,"","","","4.3.14",null,null,null,null,null,null,null,null,null,null,null,"=","-","-"]
[null,"","","","4.3.15",null,null,null,null,null,null,null,null,null,null,null,"=","-","-"]
[null,"","","","4.3.16",null,null,null,null,null,null,null,null,null,null,null,"=","-","-"]
[null,"","","","4.3.17",null,null,null,null,null,null,null,null,null,null,null,"=","-","-"]
[null,"","","","4.3.18",null,null,null,null,null,null,null,null,null,null,null,"=","-","-"]
[null,"","","","4.3.19",null,null,null,null,null,null,null,null,null,null,null,"=","-","-"]
[null,"","","","4.3.20",null,null,null,null,null,null,null,null,null,null,null,"=","-","-"]
[null,"","","","4.3.21",null,null,null,null,null,null,null,null,null,null,null,"=","-","-"]
[null,"","","","4.3.22",null,null,null,null,null,null,null,null,null,null,null,"=","-","-"]
[null,"","","","4.3.23",null,null,null,null,null,null,null,null,null,null,null,"=","-","-"]
[null,"","","","4.3.24",null,null,null,null,null,null,null,null,null,null,null,"=","-","-"]
[null,"","","","4.3.25",null,null,null,null,null,null,null,null,null,null,null,"=","-","-"]
[null,"","","","4.3.26",null,null,null,null,null,null,null,null,null,null,null,"=","-","-"]
[null,"","","","4.3.27",null,null,null,null,null,null,null,null,null,null,null,"=","-","-"]
[null,"","","","4.3.28",null,null,null,null,null,null,null,null,null,null,null,"=","-","-"]
[null,"","","","4.3.29",null,null,null,null,null,null,null,null,null,null,null,"=","-","-"]
[null,"","","","4.3.30",null,null,null,null,null,null,null,null,null,null,null,"=","-","-"]
[null,"","","","4.3.31",null,null,null,null,null,null,null,null,null,null,null,"=","-","-"]
[null,"","","","4.3.32",null,null,null,null,null,null,null,null,null,null,null,"=","-","-"]
[null,"","","","4.3.33",null,null,null,null,null,null,null,null,null,null,null,"=","-","-"]
[null,"","","","4.3.34",null,null,null,null,null,null,null,null,null,null,null,"=","-","-"]
[null,"","","","4.3.35",null,null,null,null,null,null,null,null,null,null,null,"=","-","-"]
[null,"","","","4.3.36",null,null,null,null,null,null,null,null,null,null,null,"=","-","-"]
[null,"","","","4.3.37",null,null,null,null,null,null,null,null,null,null,null,"=","-","-"]
[null,"","","","4.3.38",null,null,null,null,null,null,null,null,null,null,null,"=","-","-"]
[null,"","","","4.3.39",null,null,null,null,null,null,null,null,null,null,null,"=","-","-"]
[null,"","","","4.3.40",null,null,null,null,null,null,null,null,null,null,null,"=","-","-"]
[null,"","","","4.4.1","Котел №4 ",{"$f":"IF(COUNTBLANK(G436:G474)<39,\"Х\",\"-\")","v":"-"},{"$f":"IF(COUNTBLANK(H436:H474)<39,\"Х\",\"-\")","v":"-"},"-",null,null,null,null,null,null,null,"=",null,"**"]
[null,"","","","4.4.2",null,null,null,null,null,null,null,null,null,null,null,"=","-","-"]
[null,"","","","4.4.3",null,null,null,null,null,null,null,null,null,null,null,"=","-","-"]
[null,"","","","4.4.4",null,null,null,null,null,null,null,null,null,null,null,"=","-","-"]
[null,"","","","4.4.5",null,null,null,null,null,null,null,null,null,null,null,"=","-","-"]
[null,"","","","4.4.6",null,null,null,null,null,null,null,null,null,null,null,"=","-","-"]
[null,"","","","4.4.7",null,null,null,null,null,null,null,null,null,null,null,"=","-","-"]
[null,"","","","4.4.8",null,null,null,null,null,null,null,null,null,null,null,"=","-","-"]
[null,"","","","4.4.9",null,null,null,null,null,null,null,null,null,null,null,"=","-","-"]
[null,"","","","4.4.10",null,null,null,null,null,null,null,null,null,null,null,"=","-","-"]
[null,"","","","4.4.11",null,null,null,null,null,null,null,null,null,null,null,"=","-","-"]
[null,"","","","4.4.12",null,null,null,null,null,null,null,null,null,null,null,"=","-","-"]
[null,"","","","4.4.13",null,null,null,null,null,null,null,null,null,null,null,"=","-","-"]
[null,"","","","4.4.14",null,null,null,null,null,null,null,null,null,null,null,"=","-","-"]
[null,"","","","4.4.15",null,null,null,null,null,null,null,null,null,null,null,"=","-","-"]
[null,"","","","4.4.16",null,null,null,null,null,null,null,null,null,null,null,"=","-","-"]
[null,"","","","4.4.17",null,null,null,null,null,null,null,null,null,null,null,"=","-","-"]
[null,"","","","4.4.18",null,null,null,null,null,null,null,null,null,null,null,"=","-","-"]
[null,"","","","4.4.19",null,null,null,null,null,null,null,null,null,null,null,"=","-","-"]
[null,"","","","4.4.20",null,null,null,null,null,null,null,null,null,null,null,"=","-","-"]
[null,"","","","4.4.21",null,null,null,null,null,null,null,null,null,null,null,"=","-","-"]
[null,"","","","4.4.22",null,null,null,null,null,null,null,null,null,null,null,"=","-","-"]
[null,"","","","4.4.23",null,null,null,null,null,null,null,null,null,null,null,"=","-","-"]
[null,"","","","4.4.24",null,null,null,null,null,null,null,null,null,null,null,"=","-","-"]
[null,"","","","4.4.25",null,null,null,null,null,null,null,null,null,null,null,"=","-","-"]
[null,"","","","4.4.26",null,null,null,null,null,null,null,null,null,null,null,"=","-","-"]
[null,{"$f":"RIGHT(N461,3)","v":""},{"$f":"MID(N461,1,5)","v":""},{"$f":"MID(N461,1,6)","v":""},"4.4.27",null,null,null,null,null,null,null,null,null,null,null,"=",{"$f":"IFERROR(P461*Q461,\"-\")","v":"-"},{"$f":"IF(F461&G461&H461&I461&J461&K461&L461&M461&N461&O461&P461=\"\",\"-\",\"**\")","v":"-"}]
[null,"","","","4.4.28",null,null,null,null,null,null,null,null,null,null,null,"=","-","-"]
[null,"","","","4.4.29",null,null,null,null,null,null,null,null,null,null,null,"=","-","-"]
[null,"","","","4.4.30",null,null,null,null,null,null,null,null,null,null,null,"=","-","-"]
[null,"","","","4.4.31",null,null,null,null,null,null,null,null,null,null,null,"=","-","-"]
[null,"","","","4.4.32",null,null,null,null,null,null,null,null,null,null,null,"=","-","-"]
[null,"","","","4.4.33",null,null,null,null,null,null,null,null,null,null,null,"=","-","-"]
[null,"","","","4.4.34",null,null,null,null,null,null,null,null,null,null,null,"=","-","-"]
[null,"","","","4.4.35",null,null,null,null,null,null,null,null,null,null,null,"=","-","-"]
[null,"","","","4.4.36",null,null,null,null,null,null,null,null,null,null,null,"=","-","-"]
[null,"","","","4.4.37",null,null,null,null,null,null,null,null,null,null,null,"=","-","-"]
[null,"","","","4.4.38",null,null,null,null,null,null,null,null,null,null,null,"=","-","-"]
[null,"","","","4.4.39",null,null,null,null,null,null,null,null,null,null,null,"=","-","-"]
[null,"","","","4.4.40",null,null,null,null,null,null,null,null,null,null,null,"=","-","-"]
[null,"","","","4.5.1","Котел №5",{"$f":"IF(COUNTBLANK(G476:G514)<39,\"Х\",\"-\")","v":"-"},{"$f":"IF(COUNTBLANK(H476:H514)<39,\"Х\",\"-\")","v":"-"},"-",null,null,null,null,null,null,null,"=",null,"**"]
[null,"","","","4.5.2",null,null,null,null,null,null,null,null,null,null,null,"=","-","-"]
[null,"","","","4.5.3",null,null,null,null,null,null,null,null,null,null,null,"=","-","-"]
[null,"","","","4.5.4",null,null,null,null,null,null,null,null,null,null,null,"=","-","-"]
[null,"","","","4.5.5",null,null,null,null,null,null,null,null,null,null,null,"=","-","-"]
[null,"","","","4.5.6",null,null,null,null,null,null,null,null,null,null,null,"=","-","-"]
[null,"","","","4.5.7",null,null,null,null,null,null,null,null,null,null,null,"=","-","-"]
[null,"","","","4.5.8",null,null,null,null,null,null,null,null,null,null,null,"=","-","-"]
[null,"","","","4.5.9",null,null,null,null,null,null,null,null,null,null,null,"=","-","-"]
[null,"","","","4.5.10",null,null,null,null,null,null,null,null,null,null,null,"=","-","-"]
[null,"","","","4.5.11",null,null,null,null,null,null,null,null,null,null,null,"=","-","-"]
[null,"","","","4.5.12",null,null,null,null,null,null,null,null,null,null,null,"=","-","-"]
[null,"","","","4.5.13",null,null,null,null,null,null,null,null,null,null,null,"=","-","-"]
[null,"","","","4.5.14",null,null,null,null,null,null,null,null,null,null,null,"=","-","-"]
[null,"","","","4.5.15",null,null,null,null,null,null,null,null,null,null,null,"=","-","-"]
[null,"","","","4.5.16",null,null,null,null,null,null,null,null,null,null,null,"=","-","-"]
[null,"","","","4.5.17",null,null,null,null,null,null,null,null,null,null,null,"=","-","-"]
[null,"","","","4.5.18",null,null,null,null,null,null,null,null,null,null,null,"=","-","-"]
[null,"","","","4.5.19",null,null,null,null,null,null,null,null,null,null,null,"=","-","-"]
[null,"","","","4.5.20",null,null,null,null,null,null,null,null,null,null,null,"=","-","-"]
[null,"","","","4.5.21",null,null,null,null,null,null,null,null,null,null,null,"=","-","-"]
[null,"","","","4.5.22",null,null,null,null,null,null,null,null,null,null,null,"=","-","-"]
[null,"","","","4.5.23",null,null,null,null,null,null,null,null,null,null,null,"=","-","-"]
[null,"","","","4.5.24",null,null,null,null,null,null,null,null,null,null,null,"=","-","-"]
[null,"","","","4.5.25",null,null,null,null,null,null,null,null,null,null,null,"=","-","-"]
[null,"","","","4.5.26",null,null,null,null,null,null,null,null,null,null,null,"=","-","-"]
[null,"","","","4.5.27",null,null,null,null,null,null,null,null,null,null,null,"=","-","-"]
[null,"","","","4.5.28",null,null,null,null,null,null,null,null,null,null,null,"=","-","-"]
[null,"","","","4.5.29",null,null,null,null,null,null,null,null,null,null,null,"=","-","-"]
[null,"","","","4.5.30",null,null,null,null,null,null,null,null,null,null,null,"=","-","-"]
[null,"","","","4.5.31",null,null,null,null,null,null,null,null,null,null,null,"=","-","-"]
[null,"","","","4.5.32",null,null,null,null,null,null,null,null,null,null,null,"=","-","-"]
[null,"","","","4.5.33",null,null,null,null,null,null,null,null,null,null,null,"=","-","-"]
[null,"","","","4.5.34",null,null,null,null,null,null,null,null,null,null,null,"=","-","-"]
[null,"","","","4.5.35",null,null,null,null,null,null,null,null,null,null,null,"=","-","-"]
[null,"","","","4.5.36",null,null,null,null,null,null,null,null,null,null,null,"=","-","-"]
[null,"","","","4.5.37",null,null,null,null,null,null,null,null,null,null,null,"=","-","-"]
[null,"","","","4.5.38",null,null,null,null,null,null,null,null,null,null,null,"=","-","-"]
[null,"","","","4.5.39",null,null,null,null,null,null,null,null,null,null,null,"=","-","-"]
[null,"","","","4.5.40",null,null,null,null,null,null,null,null,null,null,null,"=","-","-"]
[null,"","","","5.","Топливоподача",{"$f":"IF(COUNTBLANK(G516:G535)<20,\"Х\",\"-\")","v":"-"},{"$f":"IF(COUNTBLANK(H516:H535)<20,\"Х\",\"-\")","v":"-"},"-",null,null,null,null,null,null,null,"=",null,"**"]
[null,"","","","5.1",null,null,null,null,null,null,null,null,null,null,null,"=","-","-"]
[null,"","","","5.2",null,null,null,null,null,null,null,null,null,null,null,"=","-","-"]
[null,"","","","5.3",null,null,null,null,null,null,null,null,null,null,null,"=","-","-"]
[null,"","","","5.4",null,null,null,null,null,null,null,null,null,null,null,"=","-","-"]
[null,"","","","5.5",null,null,null,null,null,null,null,null,null,null,null,"=","-","-"]
[null,"","","","5.6",null,null,null,null,null,null,null,null,null,null,null,"=","-","-"]
[null,"","","","5.7",null,null,null,null,null,null,null,null,null,null,null,"=","-","-"]
[null,"","","","5.8",null,null,null,null,null,null,null,null,null,null,null,"=","-","-"]
[null,"","","","5.9",null,null,null,null,null,null,null,null,null,null,null,"=","-","-"]
[null,{"$f":"RIGHT(N525,3)","v":""},{"$f":"MID(N525,1,5)","v":""},{"$f":"MID(N525,1,6)","v":""},"5.10",null,null,null,null,null,null,null,null,null,null,null,"=",{"$f":"IFERROR(P525*Q525,\"-\")","v":"-"},{"$f":"IF(F525&G525&H525&I525&J525&K525&L525&M525&N525&O525&P525=\"\",\"-\",\"**\")","v":"-"}]
[null,"","","","5.11",null,null,null,null,null,null,null,null,null,null,null,"=","-","-"]
[null,"","","","5.12",null,null,null,null,null,null,null,null,null,null,null,"=","-","-"]
[null,"","","","5.13",null,null,null,null,null,null,null,null,null,null,null,"=","-","-"]
[null,"","","","5.14",null,null,null,null,null,null,null,null,null,null,null,"=","-","-"]
[null,"","","","5.15",null,null,null,null,null,null,null,null,null,null,null,"=","-","-"]
[null,"","","","5.16",null,null,null,null,null,null,null,null,null,null,null,"=","-","-"]
[null,"","","","5.17",null,null,null,null,null,null,null,null,null,null,null,"=","-","-"]
[null,"","","","5.18",null,null,null,null,null,null,null,null,null,null,null,"=","-","-"]
[null,"","","","5.19",null,null,null,null,null,null,null,null,null,null,null,"=","-","-"]
[null,"","","","5.20",null,null,null,null,null,null,null,null,null,null,null,"=","-","-"]
[null,"","","",6,"Дымоудаление",null,null,null,null,null,null,null,null,null,null,"=",null,"**"]
[null,"","","","6.1.1","Дымосос №1 ",{"$f":"IF(COUNTBLANK(G538:G556)<19,\"Х\",\"-\")","v":"-"},{"$f":"IF(COUNTBLANK(H538:H556)<19,\"Х\",\"-\")","v":"-"},"-",null,null,null,null,null,null,null,"=",null,"**"]
[null,"","","","6.1.2",null,null,null,null,null,null,null,null,null,null,null,"=","-","-"]
[null,"","","","6.1.3",null,null,null,null,null,null,null,null,null,null,null,"=","-","-"]
[null,"","","","6.1.4",null,null,null,null,null,null,null,null,null,null,null,"=","-","-"]
[null,"","","","6.1.5",null,null,null,null,null,null,null,null,null,null,null,"=","-","-"]
[null,"","","","6.1.6",null,null,null,null,null,null,null,null,null,null,null,"=","-","-"]
[null,"","","","6.1.7",null,null,null,null,null,null,null,null,null,null,null,"=","-","-"]
[null,"","","","6.1.8",null,null,null,null,null,null,null,null,null,null,null,"=","-","-"]
[null,"","","","6.1.9",null,null,null,null,null,null,null,null,null,null,null,"=","-","-"]
[null,"","","","6.1.10",null,null,null,null,null,null,null,null,null,null,null,"=","-","-"]
[null,"","","","6.1.11",null,null,null,null,null,null,null,null,null,null,null,"=","-","-"]
[null,"","","","6.1.12",null,null,null,null,null,null,null,null,null,null,null,"=","-","-"]
[null,"","","","6.1.13",null,null,null,null,null,null,null,null,null,null,null,"=","-","-"]
[null,"","","","6.1.14",null,null,null,null,null,null,null,null,null,null,null,"=","-","-"]
[null,"","","","6.1.15",null,null,null,null,null,null,null,null,null,null,null,"=","-","-"]
[null,"","","","6.1.16",null,null,null,null,null,null,null,null,null,null,null,"=","-","-"]
[null,"","","","6.1.17",null,null,null,null,null,null,null,null,null,null,null,"=","-","-"]
[null,"","","","6.1.18",null,null,null,null,null,null,null,null,null,null,null,"=","-","-"]
[null,"","","","6.1.19",null,null,null,null,null,null,null,null,null,null,null,"=","-","-"]
[null,"","","","6.1.20",null,null,null,null,null,null,null,null,null,null,null,"=","-","-"]
[null,"","","","6.2.1","Дымосос №2 ",{"$f":"IF(COUNTBLANK(G558:G576)<19,\"Х\",\"-\")","v":"-"},{"$f":"IF(COUNTBLANK(H558:H576)<19,\"Х\",\"-\")","v":"-"},"-",null,null,null,null,null,null,null,"=",null,"**"]
[null,"","","","6.2.2",null,null,null,null,null,null,null,null,null,null,null,"=","-","-"]
[null,"","","","6.2.3",null,null,null,null,null,null,null,null,null,null,null,"=","-","-"]
[null,"","","","6.2.4",null,null,null,null,null,null,null,null,null,null,null,"=","-","-"]
[null,"","","","6.2.5",null,null,null,null,null,null,null,null,null,null,null,"=","-","-"]
[null,"","","","6.2.6",null,null,null,null,null,null,null,null,null,null,null,"=","-","-"]
[null,"","","","6.2.7",null,null,null,null,null,null,null,null,null,null,null,"=","-","-"]
[null,"","","","6.2.8",null,null,null,null,null,null,null,null,null,null,null,"=","-","-"]
[null,"","","","6.2.9",null,null,null,null,null,null,null,null,null,null,null,"=","-","-"]
[null,"","","","6.2.10",null,null,null,null,null,null,null,null,null,null,null,"=","-","-"]
[null,"","","","6.2.11",null,null,null,null,null,null,null,null,null,null,null,"=","-","-"]
[null,"","","","6.2.12",null,null,null,null,null,null,null,null,null,null,null,"=","-","-"]
[null,"","","","6.2.13",null,null,null,null,null,null,null,null,null,null,null,"=","-","-"]
[null,"","","","6.2.14",null,null,null,null,null,null,null,null,null,null,null,"=","-","-"]
[null,"","","","6.2.15",null,null,null,null,null,null,null,null,null,null,null,"=","-","-"]
[null,"","","","6.2.16",null,null,null,null,null,null,null,null,null,null,null,"=","-","-"]
[null,"","","","6.2.17",null,null,null,null,null,null,null,null,null,null,null,"=","-","-"]
[null,"","","","6.2.18",null,null,null,null,null,null,null,null,null,null,null,"=","-","-"]
[null,"","","","6.2.19",null,null,null,null,null,null,null,null,null,null,null,"=","-","-"]
[null,"","","","6.2.20",null,null,null,null,null,null,null,null,null,null,null,"=","-","-"]
[null,"","","","6.3.1","Дымосос №3",{"$f":"IF(COUNTBLANK(G578:G596)<19,\"Х\",\"-\")","v":"-"},{"$f":"IF(COUNTBLANK(H578:H596)<19,\"Х\",\"-\")","v":"-"},"-",null,null,null,null,null,null,null,"=",null,"**"]
[null,"","","","6.3.2",null,null,null,null,null,null,null,null,null,null,null,"=","-","-"]
[null,"","","","6.3.3",null,null,null,null,null,null,null,null,null,null,null,"=","-","-"]
[null,"","","","6.3.4",null,null,null,null,null,null,null,null,null,null,null,"=","-","-"]
[null,"","","","6.3.5",null,null,null,null,null,null,null,null,null,null,null,"=","-","-"]
[null,"","","","6.3.6",null,null,null,null,null,null,null,null,null,null,null,"=","-","-"]
[null,"","","","6.3.7",null,null,null,null,null,null,null,null,null,null,null,"=","-","-"]
[null,"","","","6.3.8",null,null,null,null,null,null,null,null,null,null,null,"=","-","-"]
[null,"","","","6.3.9",null,null,null,null,null,null,null,null,null,null,null,"=","-","-"]
[null,"","","","6.3.10",null,null,null,null,null,null,null,null,null,null,null,"=","-","-"]
[null,"","","","6.3.11",null,null,null,null,null,null,null,null,null,null,null,"=","-","-"]
[null,"","","","6.3.12",null,null,null,null,null,null,null,null,null,null,null,"=","-","-"]
[null,{"$f":"RIGHT(N589,3)","v":""},{"$f":"MID(N589,1,5)","v":""},{"$f":"MID(N589,1,6)","v":""},"6.3.13",null,null,null,null,null,null,null,null,null,null,null,"=",{"$f":"IFERROR(P589*Q589,\"-\")","v":"-"},{"$f":"IF(F589&G589&H589&I589&J589&K589&L589&M589&N589&O589&P589=\"\",\"-\",\"**\")","v":"-"}]
[null,"","","","6.3.14",null,null,null,null,null,null,null,null,null,null,null,"=","-","-"]
[null,"","","","6.3.15",null,null,null,null,null,null,null,null,null,null,null,"=","-","-"]
[null,"","","","6.3.16",null,null,null,null,null,null,null,null,null,null,null,"=","-","-"]
[null,"","","","6.3.17",null,null,null,null,null,null,null,null,null,null,null,"=","-","-"]
[null,"","","","6.3.18",null,null,null,null,null,null,null,null,null,null,null,"=","-","-"]
[null,"","","","6.3.19",null,null,null,null,null,null,null,null,null,null,null,"=","-","-"]
[null,"","","","6.3.20",null,null,null,null,null,null,null,null,null,null,null,"=","-","-"]
[null,"","","","6.4.1","Дымосос №4",{"$f":"IF(COUNTBLANK(G598:G616)<19,\"Х\",\"-\")","v":"-"},{"$f":"IF(COUNTBLANK(H598:H616)<19,\"Х\",\"-\")","v":"-"},"-",null,null,null,null,null,null,null,"=",null,"**"]
[null,"","","","6.4.2",null,null,null,null,null,null,null,null,null,null,null,"=","-","-"]
[null,"","","","6.4.3",null,null,null,null,null,null,null,null,null,null,null,"=","-","-"]
[null,"","","","6.4.4",null,null,null,null,null,null,null,null,null,null,null,"=","-","-"]
[null,"","","","6.4.5",null,null,null,null,null,null,null,null,null,null,null,"=","-","-"]
[null,"","","","6.4.6",null,null,null,null,null,null,null,null,null,null,null,"=","-","-"]
[null,"","","","6.4.7",null,null,null,null,null,null,null,null,null,null,null,"=","-","-"]
[null,"","","","6.4.8",null,null,null,null,null,null,null,null,null,null,null,"=","-","-"]
[null,"","","","6.4.9",null,null,null,null,null,null,null,null,null,null,null,"=","-","-"]
[null,"","","","6.4.10",null,null,null,null,null,null,null,null,null,null,null,"=","-","-"]
[null,"","","","6.4.11",null,null,null,null,null,null,null,null,null,null,null,"=","-","-"]
[null,"","","","6.4.12",null,null,null,null,null,null,null,null,null,null,null,"=","-","-"]
[null,"","","","6.4.13",null,null,null,null,null,null,null,null,null,null,null,"=","-","-"]
[null,"","","","6.4.14",null,null,null,null,null,null,null,null,null,null,null,"=","-","-"]
[null,"","","","6.4.15",null,null,null,null,null,null,null,null,null,null,null,"=","-","-"]
[null,"","","","6.4.16",null,null,null,null,null,null,null,null,null,null,null,"=","-","-"]
[null,"","","","6.4.17",null,null,null,null,null,null,null,null,null,null,null,"=","-","-"]
[null,"","","","6.4.18",null,null,null,null,null,null,null,null,null,null,null,"=","-","-"]
[null,"","","","6.4.19",null,null,null,null,null,null,null,null,null,null,null,"=","-","-"]
[null,"","","","6.4.20",null,null,null,null,null,null,null,null,null,null,null,"=","-","-"]
[null,"","","","7.","Газоходы",{"$f":"IF(COUNTBLANK(G618:G647)<30,\"Х\",\"-\")","v":"-"},{"$f":"IF(COUNTBLANK(H618:H647)<30,\"Х\",\"-\")","v":"-"},"-",null,null,null,null,null,null,null,"=",null,"**"]
[null,"","","","7.1",null,null,null,null,null,null,null,null,null,null,null,"=","-","-"]
[null,"","","","7.2",null,null,null,null,null,null,null,null,null,null,null,"=","-","-"]
[null,"","","","7.3",null,null,null,null,null,null,null,null,null,null,null,"=","-","-"]
[null,"","","","7.4",null,null,null,null,null,null,null,null,null,null,null,"=","-","-"]
[null,"","","","7.5",null,null,null,null,null,null,null,null,null,null,null,"=","-","-"]
[null,"","","","7.6",null,null,null,null,null,null,null,null,null,null,null,"=","-","-"]
[null,"","","","7.7",null,null,null,null,null,null,null,null,null,null,null,"=","-","-"]
[null,"","","","7.8",null,null,null,null,null,null,null,null,null,null,null,"=","-","-"]
[null,"","","","7.9",null,null,null,null,null,null,null,null,null,null,null,"=","-","-"]
[null,"","","","7.10",null,null,null,null,null,null,null,null,null,null,null,"=","-","-"]
[null,"","","","7.11",null,null,null,null,null,null,null,null,null,null,null,"=","-","-"]
[null,"","","","7.12",null,null,null,null,null,null,null,null,null,null,null,"=","-","-"]
[null,"","","","7.13",null,null,null,null,null,null,null,null,null,null,null,"=","-","-"]
[null,"","","","7.14",null,null,null,null,null,null,null,null,null,null,null,"=","-","-"]
[null,"","","","7.15",null,null,null,null,null,null,null,null,null,null,null,"=","-","-"]
[null,"","","","7.16",null,null,null,null,null,null,null,null,null,null,null,"=","-","-"]
[null,"","","","7.17",null,null,null,null,null,null,null,null,null,null,null,"=","-","-"]
[null,"","","","7.18",null,null,null,null,null,null,null,null,null,null,null,"=","-","-"]
[null,"","","","7.19",null,null,null,null,null,null,null,null,null,null,null,"=","-","-"]
[null,"","","","7.20",null,null,null,null,null,null,null,null,null,null,null,"=","-","-"]
[null,"","","","7.21",null,null,null,null,null,null,null,null,null,null,null,"=","-","-"]
[null,"","","","7.22",null,null,null,null,null,null,null,null,null,null,null,"=","-","-"]
[null,"","","","7.23",null,null,null,null,null,null,null,null,null,null,null,"=","-","-"]
[null,"","","","7.24",null,null,null,null,null,null,null,null,null,null,null,"=","-","-"]
[null,"","","","7.25",null,null,null,null,null,null,null,null,null,null,null,"=","-","-"]
[null,"","","","7.26",null,null,null,null,null,null,null,null,null,null,null,"=","-","-"]
[null,"","","","7.27",null,null,null,null,null,null,null,null,null,null,null,"=","-","-"]
[null,"","","","7.28",null,null,null,null,null,null,null,null,null,null,null,"=","-","-"]
[null,"","","","7.29",null,null,null,null,null,null,null,null,null,null,null,"=","-","-"]
[null,"","","","7.30",null,null,null,null,null,null,null,null,null,null,null,"=","-","-"]
[null,"","","","8.","Труба дымовая",{"$f":"IF(COUNTBLANK(G649:G668)<20,\"Х\",\"-\")","v":"-"},{"$f":"IF(COUNTBLANK(H649:H668)<20,\"Х\",\"-\")","v":"-"},"-",null,null,null,null,null,null,null,"=",null,"**"]
[null,"","","","8.1",null,null,null,null,null,null,null,null,null,null,null,"=","-","-"]
[null,"","","","8.2",null,null,null,null,null,null,null,null,null,null,null,"=","-","-"]
[null,"","","","8.3",null,null,null,null,null,null,null,null,null,null,null,"=","-","-"]
[null,"","","","8.4",null,null,null,null,null,null,null,null,null,null,null,"=","-","-"]
[null,{"$f":"RIGHT(N653,3)","v":""},{"$f":"MID(N653,1,5)","v":""},{"$f":"MID(N653,1,6)","v":""},"8.5",null,null,null,null,null,null,null,null,null,null,null,"=",{"$f":"IFERROR(P653*Q653,\"-\")","v":"-"},{"$f":"IF(F653&G653&H653&I653&J653&K653&L653&M653&N653&O653&P653=\"\",\"-\",\"**\")","v":"-"}]
[null,"","","","8.6",null,null,null,null,null,null,null,null,null,null,null,"=","-","-"]
[null,"","","","8.7",null,null,null,null,null,null,null,null,null,null,null,"=","-","-"]
[null,"","","","8.8",null,null,null,null,null,null,null,null,null,null,null,"=","-","-"]
[null,"","","","8.9",null,null,null,null,null,null,null,null,null,null,null,"=","-","-"]
[null,"","","","8.10",null,null,null,null,null,null,null,null,null,null,null,"=","-","-"]
[null,"","","","8.11",null,null,null,null,null,null,null,null,null,null,null,"=","-","-"]
[null,"","","","8.12",null,null,null,null,null,null,null,null,null,null,null,"=","-","-"]
[null,"","","","8.13",null,null,null,null,null,null,null,null,null,null,null,"=","-","-"]
[null,"","","","8.14",null,null,null,null,null,null,null,null,null,null,null,"=","-","-"]
[null,"","","","8.15",null,null,null,null,null,null,null,null,null,null,null,"=","-","-"]
[null,"","","","8.16",null,null,null,null,null,null,null,null,null,null,null,"=","-","-"]
[null,"","","","8.17",null,null,null,null,null,null,null,null,null,null,null,"=","-","-"]
[null,"","","","8.18",null,null,null,null,null,null,null,null,null,null,null,"=","-","-"]
[null,"","","","8.19",null,null,null,null,null,null,null,null,null,null,null,"=","-","-"]
[null,"","","","8.20",null,null,null,null,null,null,null,null,null,null,null,"=","-","-"]
[null,"","","","9.","Подсобные помещения",{"$f":"IF(COUNTBLANK(G670:G729)<60,\"Х\",\"-\")","v":"-"},{"$f":"IF(COUNTBLANK(H670:H729)<60,\"Х\",\"-\")","v":"-"},"-",null,null,null,null,null,null,null,"=",null,"**"]
[null,"","","","9.1",null,null,null,null,null,null,null,null,null,null,null,"=","-","-"]
[null,"","","","9.2",null,null,null,null,null,null,null,null,null,null,null,"=","-","-"]
[null,"","","","9.3",null,null,null,null,null,null,null,null,null,null,null,"=","-","-"]
[null,"","","","9.4",null,null,null,null,null,null,null,null,null,null,null,"=","-","-"]
[null,"","","","9.5",null,null,null,null,null,null,null,null,null,null,null,"=","-","-"]
[null,"","","","9.6",null,null,null,null,null,null,null,null,null,null,null,"=","-","-"]
[null,"","","","9.7",null,null,null,null,null,null,null,null,null,null,null,"=","-","-"]
[null,"","","","9.8",null,null,null,null,null,null,null,null,null,null,null,"=","-","-"]
[null,"","","","9.9",null,null,null,null,null,null,null,null,null,null,null,"=","-","-"]
[null,"","","","9.10",null,null,null,null,null,null,null,null,null,null,null,"=","-","-"]
[null,"","","","9.11",null,null,null,null,null,null,null,null,null,null,null,"=","-","-"]
[null,"","","","9.12",null,null,null,null,null,null,null,null,null,null,null,"=","-","-"]
[null,"","","","9.13",null,null,null,null,null,null,null,null,null,null,null,"=","-","-"]
[null,"","","","9.14",null,null,null,null,null,null,null,null,null,null,null,"=","-","-"]
[null,"","","","9.15",null,null,null,null,null,null,null,null,null,null,null,"=","-","-"]
[null,"","","","9.16",null,null,null,null,null,null,null,null,null,null,null,"=","-","-"]
[null,"","","","9.17",null,null,null,null,null,null,null,null,null,null,null,"=","-","-"]
[null,"","","","9.18",null,null,null,null,null,null,null,null,null,null,null,"=","-","-"]
[null,"","","","9.19",null,null,null,null,null,null,null,null,null,null,null,"=","-","-"]
[null,"","","","9.20",null,null,null,null,null,null,null,null,null,null,null,"=","-","-"]
[null,"","","","9.21",null,null,null,null,null,null,null,null,null,null,null,"=","-","-"]
[null,"","","","9.22",null,null,null,null,null,null,null,null,null,null,null,"=","-","-"]
[null,"","","","9.23",null,null,null,null,null,null,null,null,null,null,null,"=","-","-"]
[null,"","","","9.24",null,null,null,null,null,null,null,null,null,null,null,"=","-","-"]
[null,"","","","9.25",null,null,null,null,null,null,null,null,null,null,null,"=","-","-"]
[null,"","","","9.26",null,null,null,null,null,null,null,null,null,null,null,"=","-","-"]
[null,"","","","9.27",null,null,null,null,null,null,null,null,null,null,null,"=","-","-"]
[null,"","","","9.28",null,null,null,null,null,null,null,null,null,null,null,"=","-","-"]
[null,"","","","9.29",null,null,null,null,null,null,null,null,null,null,null,"=","-","-"]
[null,"","","","9.30",null,null,null,null,null,null,null,null,null,null,null,"=","-","-"]
[null,"","","","9.31",null,null,null,null,null,null,null,null,null,null,null,"=","-","-"]
[null,"","","","9.32",null,null,null,null,null,null,null,null,null,null,null,"=","-","-"]
[null,"","","","9.33",null,null,null,null,null,null,null,null,null,null,null,"=","-","-"]
[null,"","","","9.34",null,null,null,null,null,null,null,null,null,null,null,"=","-","-"]
[null,"","","","9.35",null,null,null,null,null,null,null,null,null,null,null,"=","-","-"]
[null,"","","","9.36",null,null,null,null,null,null,null,null,null,null,null,"=","-","-"]
[null,"","","","9.37",null,null,null,null,null,null,null,null,null,null,null,"=","-","-"]
[null,"","","","9.38",null,null,null,null,null,null,null,null,null,null,null,"=","-","-"]
[null,"","","","9.39",null,null,null,null,null,null,null,null,null,null,null,"=","-","-"]
[null,"","","","9.40",null,null,null,null,null,null,null,null,null,null,null,"=","-","-"]
[null,"","","","9.41",null,null,null,null,null,null,null,null,null,null,null,"=","-","-"]
[null,"","","","9.42",null,null,null,null,null,null,null,null,null,null,null,"=","-","-"]
[null,"","","","9.43",null,null,null,null,null,null,null,null,null,null,null,"=","-","-"]
[null,"","","","9.44",null,null,null,null,null,null,null,null,null,null,null,"=","-","-"]
[null,"","","","9.45",null,null,null,null,null,null,null,null,null,null,null,"=","-","-"]
[null,"","","","9.46",null,null,null,null,null,null,null,null,null,null,null,"=","-","-"]
[null,"","","","9.47",null,null,null,null,null,null,null,null,null,null,null,"=","-","-"]
[null,{"$f":"RIGHT(N717,3)","v":""},{"$f":"MID(N717,1,5)","v":""},{"$f":"MID(N717,1,6)","v":""},"9.48",null,null,null,null,null,null,null,null,null,null,null,"=",{"$f":"IFERROR(P717*Q717,\"-\")","v":"-"},{"$f":"IF(F717&G717&H717&I717&J717&K717&L717&M717&N717&O717&P717=\"\",\"-\",\"**\")","v":"-"}]
[null,"","","","9.49",null,null,null,null,null,null,null,null,null,null,null,"=","-","-"]
[null,"","","","9.50",null,null,null,null,null,null,null,null,null,null,null,"=","-","-"]
[null,"","","","9.51",null,null,null,null,null,null,null,null,null,null,null,"=","-","-"]
[null,"","","","9.52",null,null,null,null,null,null,null,null,null,null,null,"=","-","-"]
[null,"","","","9.53",null,null,null,null,null,null,null,null,null,null,null,"=","-","-"]
[null,"","","","9.54",null,null,null,null,null,null,null,null,null,null,null,"=","-","-"]
[null,"","","","9.55",null,null,null,null,null,null,null,null,null,null,null,"=","-","-"]
[null,"","","","9.56",null,null,null,null,null,null,null,null,null,null,null,"=","-","-"]
[null,"","","","9.57",null,null,null,null,null,null,null,null,null,null,null,"=","-","-"]
[null,"","","","9.58",null,null,null,null,null,null,null,null,null,null,null,"=","-","-"]
[null,"","","","9.59",null,null,null,null,null,null,null,null,null,null,null,"=","-","-"]
[null,"","","","9.60",null,null,null,null,null,null,null,null,null,null,null,"=","-","-"]
[null,"","","","10.","Здание",{"$f":"IF(COUNTBLANK(G731:G770)<40,\"Х\",\"-\")","v":"-"},{"$f":"IF(COUNTBLANK(H731:H770)<40,\"Х\",\"-\")","v":"-"},"-",null,null,null,null,null,null,null,"=",null,"**"]
[null,"","","","10.1",null,null,null,null,null,null,null,null,null,null,null,"=","-","-"]
[null,"","","","10.2",null,null,null,null,null,null,null,null,null,null,null,"=","-","-"]
[null,"","","","10.3",null,null,null,null,null,null,null,null,null,null,null,"=","-","-"]
[null,"","","","10.4",null,null,null,null,null,null,null,null,null,null,null,"=","-","-"]
[null,"","","","10.5",null,null,null,null,null,null,null,null,null,null,null,"=","-","-"]
[null,"","","","10.6",null,null,null,null,null,null,null,null,null,null,null,"=","-","-"]
[null,"","","","10.7",null,null,null,null,null,null,null,null,null,null,null,"=","-","-"]
[null,"","","","10.8",null,null,null,null,null,null,null,null,null,null,null,"=","-","-"]
[null,"","","","10.9",null,null,null,null,null,null,null,null,null,null,null,"=","-","-"]
[null,"","","","10.10",null,null,null,null,null,null,null,null,null,null,null,"=","-","-"]
[null,"","","","10.11",null,null,null,null,null,null,null,null,null,null,null,"=","-","-"]
[null,"","","","10.12",null,null,null,null,null,null,null,null,null,null,null,"=","-","-"]
[null,"","","","10.13",null,null,null,null,null,null,null,null,null,null,null,"=","-","-"]
[null,"","","","10.14",null,null,null,null,null,null,null,null,null,null,null,"=","-","-"]
[null,"","","","10.15",null,null,null,null,null,null,null,null,null,null,null,"=","-","-"]
[null,"","","","10.16",null,null,null,null,null,null,null,null,null,null,null,"=","-","-"]
[null,"","","","10.17",null,null,null,null,null,null,null,null,null,null,null,"=","-","-"]
[null,"","","","10.18",null,null,null,null,null,null,null,null,null,null,null,"=","-","-"]
[null,"","","","10.19",null,null,null,null,null,null,null,null,null,null,null,"=","-","-"]
[null,"","","","10.20",null,null,null,null,null,null,null,null,null,null,null,"=","-","-"]
[null,"","","","10.21",null,null,null,null,null,null,null,null,null,null,null,"=","-","-"]
[null,"","","","10.22",null,null,null,null,null,null,null,null,null,null,null,"=","-","-"]
[null,"","","","10.23",null,null,null,null,null,null,null,null,null,null,null,"=","-","-"]
[null,"","","","10.24",null,null,null,null,null,null,null,null,null,null,null,"=","-","-"]
[null,"","","","10.25",null,null,null,null,null,null,null,null,null,null,null,"=","-","-"]
[null,"","","","10.26",null,null,null,null,null,null,null,null,null,null,null,"=","-","-"]
[null,"","","","10.27",null,null,null,null,null,null,null,null,null,null,null,"=","-","-"]
[null,"","","","10.28",null,null,null,null,null,null,null,null,null,null,null,"=","-","-"]
[null,"","","","10.29",null,null,null,null,null,null,null,null,null,null,null,"=","-","-"]
[null,"","","","10.30",null,null,null,null,null,null,null,null,null,null,null,"=","-","-"]
[null,"","","","10.31",null,null,null,null,null,null,null,null,null,null,null,"=","-","-"]
[null,"","","","10.32",null,null,null,null,null,null,null,null,null,null,null,"=","-","-"]
[null,"","","","10.33",null,null,null,null,null,null,null,null,null,null,null,"=","-","-"]
[null,"","","","10.34",null,null,null,null,null,null,null,null,null,null,null,"=","-","-"]
[null,"","","","10.35",null,null,null,null,null,null,null,null,null,null,null,"=","-","-"]
[null,"","","","10.36",null,null,null,null,null,null,null,null,null,null,null,"=","-","-"]
[null,"","","","10.37",null,null,null,null,null,null,null,null,null,null,null,"=","-","-"]
[null,"","","","10.38",null,null,null,null,null,null,null,null,null,null,null,"=","-","-"]
[null,"","","","10.39",null,null,null,null,null,null,null,null,null,null,null,"=","-","-"]
[null,"","","","10.40",null,null,null,null,null,null,null,null,null,null,null,"=","-","-"]
[null,"","","","11.","Территория котельной",{"$f":"IF(COUNTBLANK(G772:G791)<20,\"Х\",\"-\")","v":"-"},{"$f":"IF(COUNTBLANK(H772:H791)<20,\"Х\",\"-\")","v":"-"},"-",null,null,null,null,null,null,null,"=",null,"**"]
[null,"","","","11.1",null,null,null,null,null,null,null,null,null,null,null,"=","-","-"]
[null,"","","","11.2",null,null,null,null,null,null,null,null,null,null,null,"=","-","-"]
[null,"","","","11.3",null,null,null,null,null,null,null,null,null,null,null,"=","-","-"]
[null,"","","","11.4",null,null,null,null,null,null,null,null,null,null,null,"=","-","-"]
[null,"","","","11.5",null,null,null,null,null,null,null,null,null,null,null,"=","-","-"]
[null,"","","","11.6",null,null,null,null,null,null,null,null,null,null,null,"=","-","-"]
[null,"","","","11.7",null,null,null,null,null,null,null,null,null,null,null,"=","-","-"]
[null,"","","","11.8",null,null,null,null,null,null,null,null,null,null,null,"=","-","-"]
[null,"","","","11.9",null,null,null,null,null,null,null,null,null,null,null,"=","-","-"]
[null,{"$f":"RIGHT(N781,3)","v":""},{"$f":"MID(N781,1,5)","v":""},{"$f":"MID(N781,1,6)","v":""},"11.10",null,null,null,null,null,null,null,null,null,null,null,"=",{"$f":"IFERROR(P781*Q781,\"-\")","v":"-"},{"$f":"IF(F781&G781&H781&I781&J781&K781&L781&M781&N781&O781&P781=\"\",\"-\",\"**\")","v":"-"}]
[null,"","","","11.11",null,null,null,null,null,null,null,null,null,null,null,"=","-","-"]
[null,"","","","11.12",null,null,null,null,null,null,null,null,null,null,null,"=","-","-"]
[null,"","","","11.13",null,null,null,null,null,null,null,null,null,null,null,"=","-","-"]
[null,"","","","11.14",null,null,null,null,null,null,null,null,null,null,null,"=","-","-"]
[null,"","","","11.15",null,null,null,null,null,null,null,null,null,null,null,"=","-","-"]
[null,"","","","11.16",null,null,null,null,null,null,null,null,null,null,null,"=","-","-"]
[null,"","","","11.17",null,null,null,null,null,null,null,null,null,null,null,"=","-","-"]
[null,"","","","11.18",null,null,null,null,null,null,null,null,null,null,null,"=","-","-"]
[null,"","","","11.19",null,null,null,null,null,null,null,null,null,null,null,"=","-","-"]
[null,"","","","11.20",null,null,null,null,null,null,null,null,null,null,null,"=","-","-"]
[null,"","","","12.","Тепловые сети",{"$f":"IF(COUNTBLANK(G793:G882)<90,\"Х\",\"-\")","v":"-"},{"$f":"IF(COUNTBLANK(H793:H882)<90,\"Х\",\"-\")","v":"-"},"-",null,null,null,null,null,null,null,"=",null,"**"]
[null,"","","","12.1",null,null,null,null,null,null,null,null,null,null,null,"=","-","-"]
[null,"","","","12.2",null,null,null,null,null,null,null,null,null,null,null,"=","-","-"]
[null,"","","","12.3",null,null,null,null,null,null,null,null,null,null,null,"=","-","-"]
[null,"","","","12.4",null,null,null,null,null,null,null,null,null,null,null,"=","-","-"]
[null,"","","","12.5",null,null,null,null,null,null,null,null,null,null,null,"=","-","-"]
[null,"","","","12.6",null,null,null,null,null,null,null,null,null,null,null,"=","-","-"]
[null,"","","","12.7",null,null,null,null,null,null,null,null,null,null,null,"=","-","-"]
[null,"","","","12.8",null,null,null,null,null,null,null,null,null,null,null,"=","-","-"]
[null,"","","","12.9",null,null,null,null,null,null,null,null,null,null,null,"=","-","-"]
[null,"","","","12.10",null,null,null,null,null,null,null,null,null,null,null,"=","-","-"]
[null,"","","","12.11",null,null,null,null,null,null,null,null,null,null,null,"=","-","-"]
[null,"","","","12.12",null,null,null,null,null,null,null,null,null,null,null,"=","-","-"]
[null,"","","","12.13",null,null,null,null,null,null,null,null,null,null,null,"=","-","-"]
[null,"","","","12.14",null,null,null,null,null,null,null,null,null,null,null,"=","-","-"]
[null,"","","","12.15",null,null,null,null,null,null,null,null,null,null,null,"=","-","-"]
[null,"","","","12.16",null,null,null,null,null,null,null,null,null,null,null,"=","-","-"]
[null,"","","","12.17",null,null,null,null,null,null,null,null,null,null,null,"=","-","-"]
[null,"","","","12.18",null,null,null,null,null,null,null,null,null,null,null,"=","-","-"]
[null,"","","","12.19",null,null,null,null,null,null,null,null,null,null,null,"=","-","-"]
[null,"","","","12.20",null,null,null,null,null,null,null,null,null,null,null,"=","-","-"]
[null,"","","","12.21",null,null,null,null,null,null,null,null,null,null,null,"=","-","-"]
[null,"","","","12.22",null,null,null,null,null,null,null,null,null,null,null,"=","-","-"]
[null,"","","","12.23",null,null,null,null,null,null,null,null,null,null,null,"=","-","-"]
[null,"","","","12.24",null,null,null,null,null,null,null,null,null,null,null,"=","-","-"]
[null,"","","","12.25",null,null,null,null,null,null,null,null,null,null,null,"=","-","-"]
[null,"","","","12.26",null,null,null,null,null,null,null,null,null,null,null,"=","-","-"]
[null,"","","","12.27",null,null,null,null,null,null,null,null,null,null,null,"=","-","-"]
[null,"","","","12.28",null,null,null,null,null,null,null,null,null,null,null,"=","-","-"]
[null,"","","","12.29",null,null,null,null,null,null,null,null,null,null,null,"=","-","-"]
[null,"","","","12.30",null,null,null,null,null,null,null,null,null,null,null,"=","-","-"]
[null,"","","","12.31",null,null,null,null,null,null,null,null,null,null,null,"=","-","-"]
[null,"","","","12.32",null,null,null,null,null,null,null,null,null,null,null,"=","-","-"]
[null,"","","","12.33",null,null,null,null,null,null,null,null,null,null,null,"=","-","-"]
[null,"","","","12.34",null,null,null,null,null,null,null,null,null,null,null,"=","-","-"]
[null,"","","","12.35",null,null,null,null,null,null,null,null,null,null,null,"=","-","-"]
[null,"","","","12.36",null,null,null,null,null,null,null,null,null,null,null,"=","-","-"]
[null,"","","","12.37",null,null,null,null,null,null,null,null,null,null,null,"=","-","-"]
[null,"","","","12.38",null,null,null,null,null,null,null,null,null,null,null,"=","-","-"]
[null,"","","","12.39",null,null,null,null,null,null,null,null,null,null,null,"=","-","-"]
[null,"","","","12.40",null,null,null,null,null,null,null,null,null,null,null,"=","-","-"]
[null,"","","","12.41",null,null,null,null,null,null,null,null,null,null,null,"=","-","-"]
[null,"","","","12.42",null,null,null,null,null,null,null,null,null,null,null,"=","-","-"]
[null,"","","","12.43",null,null,null,null,null,null,null,null,null,null,null,"=","-","-"]
[null,"","","","12.44",null,null,null,null,null,null,null,null,null,null,null,"=","-","-"]
[null,"","","","12.45",null,null,null,null,null,null,null,null,null,null,null,"=","-","-"]
[null,"","","","12.46",null,null,null,null,null,null,null,null,null,null,null,"=","-","-"]
[null,"","","","12.47",null,null,null,null,null,null,null,null,null,null,null,"=","-","-"]
[null,"","","","12.48",null,null,null,null,null,null,null,null,null,null,null,"=","-","-"]
[null,"","","","12.49",null,null,null,null,null,null,null,null,null,null,null,"=","-","-"]
[null,"","","","12.50",null,null,null,null,null,null,null,null,null,null,null,"=","-","-"]
[null,"","","","12.51",null,null,null,null,null,null,null,null,null,null,null,"=","-","-"]
[null,"","","","12.52",null,null,null,null,null,null,null,null,null,null,null,"=","-","-"]
[null,{"$f":"RIGHT(N845,3)","v":""},{"$f":"MID(N845,1,5)","v":""},{"$f":"MID(N845,1,6)","v":""},"12.53",null,null,null,null,null,null,null,null,null,null,null,"=",{"$f":"IFERROR(P845*Q845,\"-\")","v":"-"},{"$f":"IF(F845&G845&H845&I845&J845&K845&L845&M845&N845&O845&P845=\"\",\"-\",\"**\")","v":"-"}]
[null,"","","","12.54",null,null,null,null,null,null,null,null,null,null,null,"=","-","-"]
[null,"","","","12.55",null,null,null,null,null,null,null,null,null,null,null,"=","-","-"]
[null,"","","","12.56",null,null,null,null,null,null,null,null,null,null,null,"=","-","-"]
[null,"","","","12.57",null,null,null,null,null,null,null,null,null,null,null,"=","-","-"]
[null,"","","","12.58",null,null,null,null,null,null,null,null,null,null,null,"=","-","-"]
[null,"","","","12.59",null,null,null,null,null,null,null,null,null,null,null,"=","-","-"]
[null,"","","","12.60",null,null,null,null,null,null,null,null,null,null,null,"=","-","-"]
[null,"","","","12.61",null,null,null,null,null,null,null,null,null,null,null,"=","-","-"]
[null,"","","","12.62",null,null,null,null,null,null,null,null,null,null,null,"=","-","-"]
[null,"","","","12.63",null,null,null,null,null,null,null,null,null,null,null,"=","-","-"]
[null,"","","","12.64",null,null,null,null,null,null,null,null,null,null,null,"=","-","-"]
[null,"","","","12.65",null,null,null,null,null,null,null,null,null,null,null,"=","-","-"]
[null,"","","","12.66",null,null,null,null,null,null,null,null,null,null,null,"=","-","-"]
[null,"","","","12.67",null,null,null,null,null,null,null,null,null,null,null,"=","-","-"]
[null,"","","","12.68",null,null,null,null,null,null,null,null,null,null,null,"=","-","-"]
[null,"","","","12.69",null,null,null,null,null,null,null,null,null,null,null,"=","-","-"]
[null,"","","","12.70",null,null,null,null,null,null,null,null,null,null,null,"=","-","-"]
[null,"","","","12.71",null,null,null,null,null,null,null,null,null,null,null,"=","-","-"]
[null,"","","","12.72",null,null,null,null,null,null,null,null,null,null,null,"=","-","-"]
[null,"","","","12.73",null,null,null,null,null,null,null,null,null,null,null,"=","-","-"]
[null,"","","","12.74",null,null,null,null,null,null,null,null,null,null,null,"=","-","-"]
[null,"","","","12.75",null,null,null,null,null,null,null,null,null,null,null,"=","-","-"]
[null,"","","","12.76",null,null,null,null,null,null,null,null,null,null,null,"=","-","-"]
[null,"","","","12.77",null,null,null,null,null,null,null,null,null,null,null,"=","-","-"]
[null,"","","","12.78",null,null,null,null,null,null,null,null,null,null,null,"=","-","-"]
[null,"","","","12.79",null,null,null,null,null,null,null,null,null,null,null,"=","-","-"]
[null,"","","","12.80",null,null,null,null,null,null,null,null,null,null,null,"=","-","-"]
[null,"","","","12.81",null,null,null,null,null,null,null,null,null,null,null,"=","-","-"]
[null,"","","","12.82",null,null,null,null,null,null,null,null,null,null,null,"=","-","-"]
[null,"","","","12.83",null,null,null,null,null,null,null,null,null,null,null,"=","-","-"]
[null,"","","","12.84",null,null,null,null,null,null,null,null,null,null,null,"=","-","-"]
[null,"","","","12.85",null,null,null,null,null,null,null,null,null,null,null,"=","-","-"]
[null,"","","","12.86",null,null,null,null,null,null,null,null,null,null,null,"=","-","-"]
[null,"","","","12.87",null,null,null,null,null,null,null,null,null,null,null,"=","-","-"]
[null,"","","","12.88",null,null,null,null,null,null,null,null,null,null,null,"=","-","-"]
[null,"","","","12.89",null,null,null,null,null,null,null,null,null,null,null,"=","-","-"]
[null,"","","","12.90",null,null,null,null,null,null,null,null,null,null,null,"=","-","-"]
[null,null,null,null,"12.91",null,null,null,null,null,null,null,null,null,null,null,"=",{"$f":"IFERROR(P883*Q883,\"-\")","v":"-"},"-"]
[null,null,null,null,"12.92",null,null,null,null,null,null,null,null,null,null,null,"=","-","-"]
[null,null,null,null,"12.93",null,null,null,null,null,null,null,null,null,null,null,"=","-","-"]
[null,null,null,null,"12.94",null,null,null,null,null,null,null,null,null,null,null,"=","-","-"]
[null,null,null,null,"12.95",null,null,null,null,null,null,null,null,null,null,null,"=","-","-"]
[null,null,null,null,"12.96",null,null,null,null,null,null,null,null,null,null,null,"=","-","-"]
[null,null,null,null,"12.97",null,null,null,null,null,null,null,null,null,null,null,"=","-","-"]
[null,null,null,null,"12.98",null,null,null,null,null,null,null,null,null,null,null,"=","-","-"]
[null,null,null,null,"12.99",null,null,null,null,null,null,null,null,null,null,null,"=","-","-"]
[null,null,null,null,"12.100",null,null,null,null,null,null,null,null,null,null,null,"=","-","-"]
[null,null,null,null,"12.101",null,null,null,null,null,null,null,null,null,null,null,"=","-","-"]
[null,null,null,null,"12.102",null,null,null,null,null,null,null,null,null,null,null,"=","-","-"]
[null,null,null,null,"12.103",null,null,null,null,null,null,null,null,null,null,null,"=","-","-"]
[null,null,null,null,"12.104",null,null,null,null,null,null,null,null,null,null,null,"=","-","-"]
[null,null,null,null,"12.105",null,null,null,null,null,null,null,null,null,null,null,"=","-","-"]
[null,null,null,null,"12.106",null,null,null,null,null,null,null,null,null,null,null,"=","-","-"]
[null,null,null,null,"12.107",null,null,null,null,null,null,null,null,null,null,null,"=","-","-"]
[null,null,null,null,"12.108",null,null,null,null,null,null,null,null,null,null,null,"=","-","-"]
[null,null,null,null,"12.109",null,null,null,null,null,null,null,null,null,null,null,"=","-","-"]
[null,null,null,null,"12.110",null,null,null,null,null,null,null,null,null,null,null,"=","-","-"]
[null,null,null,null,"12.111",null,null,null,null,null,null,null,null,null,null,null,"=","-","-"]
[null,null,null,null,"12.112",null,null,null,null,null,null,null,null,null,null,null,"=","-","-"]
[null,null,null,null,"12.113",null,null,null,null,null,null,null,null,null,null,null,"=","-","-"]
[null,null,null,null,"12.114",null,null,null,null,null,null,null,null,null,null,null,"=","-","-"]
[null,null,null,null,"12.115",null,null,null,null,null,null,null,null,null,null,null,"=","-","-"]
[null,null,null,null,"12.116",null,null,null,null,null,null,null,null,null,null,null,"=","-","-"]
[null,null,null,null,"12.117",null,null,null,null,null,null,null,null,null,null,null,"=","-",{"$f":"IF(F909&G909&H909&I909&J909&K909&L909&M909&N909&O909&P909=\"\",\"-\",\"**\")","v":"-"}]
[null,null,null,null,"12.118",null,null,null,null,null,null,null,null,null,null,null,"=","-","-"]
[null,null,null,null,"12.119",null,null,null,null,null,null,null,null,null,null,null,"=","-","-"]
[null,null,null,null,"12.120",null,null,null,null,null,null,null,null,null,null,null,"=","-","-"]
[null,null,null,null,"12.121",null,null,null,null,null,null,null,null,null,null,null,"=","-","-"]
[null,null,null,null,"12.122",null,null,null,null,null,null,null,null,null,null,null,"=","-","-"]
[null,null,null,null,"12.123",null,null,null,null,null,null,null,null,null,null,null,"=","-","-"]
[null,null,null,null,"12.124",null,null,null,null,null,null,null,null,null,null,null,"=","-","-"]
[null,null,null,null,"12.125",null,null,null,null,null,null,null,null,null,null,null,"=","-","-"]
[null,null,null,null,"12.126",null,null,null,null,null,null,null,null,null,null,null,"=","-","-"]
[null,null,null,null,"12.127",null,null,null,null,null,null,null,null,null,null,null,"=","-","-"]
[null,null,null,null,"12.128",null,null,null,null,null,null,null,null,null,null,null,"=","-","-"]
[null,null,null,null,"12.129",null,null,null,null,null,null,null,null,null,null,null,"=","-","-"]
[null,null,null,null,"12.130",null,null,null,null,null,null,null,null,null,null,null,"=","-","-"]
[null,null,null,null,"12.131",null,null,null,null,null,null,null,null,null,null,null,"=","-","-"]
[null,null,null,null,"12.132",null,null,null,null,null,null,null,null,null,null,null,"=","-","-"]
[null,null,null,null,"12.133",null,null,null,null,null,null,null,null,null,null,null,"=","-","-"]
[null,null,null,null,"12.134",null,null,null,null,null,null,null,null,null,null,null,"=","-","-"]
[null,null,null,null,"12.135",null,null,null,null,null,null,null,null,null,null,null,"=","-","-"]
[null,null,null,null,"12.136",null,null,null,null,null,null,null,null,null,null,null,"=","-","-"]
[null,null,null,null,"12.137",null,null,null,null,null,null,null,null,null,null,null,"=","-","-"]
[null,null,null,null,"12.138",null,null,null,null,null,null,null,null,null,null,null,"=","-","-"]
[null,null,null,null,"12.139",null,null,null,null,null,null,null,null,null,null,null,"=","-","-"]
[null,null,null,null,"12.140",null,null,null,null,null,null,null,null,null,null,null,"=","-","-"]
[null,null,null,null,"12.141",null,null,null,null,null,null,null,null,null,null,null,"=","-","-"]
[null,null,null,null,"12.142",null,null,null,null,null,null,null,null,null,null,null,"=","-","-"]
[null,null,null,null,"12.143",null,null,null,null,null,null,null,null,null,null,null,"=","-","-"]
[null,null,null,null,"12.144",null,null,null,null,null,null,null,null,null,null,null,"=","-","-"]
[null,null,null,null,"12.145",null,null,null,null,null,null,null,null,null,null,null,"=","-","-"]
[null,null,null,null,"12.146",null,null,null,null,null,null,null,null,null,null,null,"=","-","-"]
[null,null,null,null,"12.147",null,null,null,null,null,null,null,null,null,null,null,"=","-","-"]
[null,null,null,null,"12.148",null,null,null,null,null,null,null,null,null,null,null,"=","-","-"]
[null,null,null,null,"12.149",null,null,null,null,null,null,null,null,null,null,null,"=","-","-"]
[null,null,null,null,"12.150",null,null,null,null,null,null,null,null,null,null,null,"=","-","-"]
[null,null,null,null,"12.151",null,null,null,null,null,null,null,null,null,null,null,"=","-","-"]
[null,null,null,null,"12.152",null,null,null,null,null,null,null,null,null,null,null,"=","-","-"]
[null,null,null,null,"12.153",null,null,null,null,null,null,null,null,null,null,null,"=","-","-"]
[null,null,null,null,"12.154",null,null,null,null,null,null,null,null,null,null,null,"=","-","-"]
[null,null,null,null,"12.155",null,null,null,null,null,null,null,null,null,null,null,"=",{"$f":"IFERROR(P947*Q947,\"-\")","v":"-"},"-"]
[null,null,null,null,"12.156",null,null,null,null,null,null,null,null,null,null,null,"=","-","-"]
[null,null,null,null,"12.157",null,null,null,null,null,null,null,null,null,null,null,"=","-","-"]
[null,null,null,null,"12.158",null,null,null,null,null,null,null,null,null,null,null,"=","-","-"]
[null,null,null,null,"12.159",null,null,null,null,null,null,null,null,null,null,null,"=","-","-"]
[null,null,null,null,"12.160",null,null,null,null,null,null,null,null,null,null,null,"=","-","-"]
[null,null,null,null,"12.161",null,null,null,null,null,null,null,null,null,null,null,"=","-","-"]
[null,null,null,null,"12.162",null,null,null,null,null,null,null,null,null,null,null,"=","-","-"]
[null,null,null,null,"12.163",null,null,null,null,null,null,null,null,null,null,null,"=","-","-"]
[null,null,null,null,"12.164",null,null,null,null,null,null,null,null,null,null,null,"=","-","-"]
[null,null,null,null,"12.165",null,null,null,null,null,null,null,null,null,null,null,"=","-","-"]
[null,null,null,null,"12.166",null,null,null,null,null,null,null,null,null,null,null,"=","-","-"]
[null,null,null,null,"12.167",null,null,null,null,null,null,null,null,null,null,null,"=","-","-"]
[null,null,null,null,"12.168",null,null,null,null,null,null,null,null,null,null,null,"=","-","-"]
[null,null,null,null,"12.169",null,null,null,null,null,null,null,null,null,null,null,"=","-","-"]
[null,null,null,null,"12.170",null,null,null,null,null,null,null,null,null,null,null,"=","-","-"]
[null,"","","","13.","Подготовка персонала",{"$f":"IF(COUNTBLANK(G964:G978)<15,\"Х\",\"-\")","v":"-"},{"$f":"IF(COUNTBLANK(H964:H978)<15,\"Х\",\"-\")","v":"-"},"-",null,null,null,null,null,null,null,"=",null,"**"]
[null,"","","","13.1",null,null,null,null,null,null,null,null,null,null,null,"=","-","-"]
[null,"","","","13.2",null,null,null,null,null,null,null,null,null,null,null,"=","-","-"]
[null,"","","","13.3",null,null,null,null,null,null,null,null,null,null,null,"=","-","-"]
[null,"","","","13.4",null,null,null,null,null,null,null,null,null,null,null,"=","-","-"]
[null,"","","","13.5",null,null,null,null,null,null,null,null,null,null,null,"=","-","-"]
[null,"","","","13.6",null,null,null,null,null,null,null,null,null,null,null,"=","-","-"]
[null,"","","","13.7",null,null,null,null,null,null,null,null,null,null,null,"=",{"$f":"IFERROR(P970*Q970,\"-\")","v":"-"},"-"]
[null,"","","","13.8",null,null,null,null,null,null,null,null,null,null,null,"=","-","-"]
[null,"","","","13.9",null,null,null,null,null,null,null,null,null,null,null,"=","-","-"]
[null,"","","","13.10",null,null,null,null,null,null,null,null,null,null,null,"=","-",{"$f":"IF(F973&G973&H973&I973&J973&K973&L973&M973&N973&O973&P973=\"\",\"-\",\"**\")","v":"-"}]
[null,"","","","13.11",null,null,null,null,null,null,null,null,null,null,null,"=","-","-"]
[null,"","","","13.12",null,null,null,null,null,null,null,null,null,null,null,"=","-","-"]
[null,"","","","13.13",null,null,null,null,null,null,null,null,null,null,null,"=","-","-"]
[null,"","","","13.14",null,null,null,null,null,null,null,null,null,null,null,"=","-","-"]
[null,"","","","13.15",null,null,null,null,null,null,null,null,null,null,null,"=","-","-"]
[null,"","","","14.","Дополнительное оборудование",{"$f":"IF(COUNTBLANK(G980:G989)<10,\"Х\",\"-\")","v":"-"},{"$f":"IF(COUNTBLANK(H980:H989)<10,\"Х\",\"-\")","v":"-"},"-",null,null,null,null,null,null,null,"=",null,{"$f":"IF(F979&G979&H979&I979&J979&K979&L979&M979&N979&O979&P979=\"\",\"-\",\"**\")","v":"**"}]
[null,"","","","14.1",null,null,null,null,null,null,null,null,null,null,null,"=","-","-"]
[null,"","","","14.2",null,null,null,null,null,null,null,null,null,null,null,"=","-","-"]
[null,"","","","14.3",null,null,null,null,null,null,null,null,null,null,null,"=","-","-"]
[null,"","","","14.4",null,null,null,null,null,null,null,null,null,null,null,"=","-","-"]
[null,"","","","14.5",null,null,null,null,null,null,null,null,null,null,null,"=","-","-"]
[null,"","","","14.6",null,null,null,null,null,null,null,null,null,null,null,"=","-","-"]
[null,"","","","14.7",null,null,null,null,null,null,null,null,null,null,null,"=","-","-"]
[null,"","","","14.8",null,null,null,null,null,null,null,null,null,null,null,"=","-","-"]
[null,"","","","14.9",null,null,null,null,null,null,null,null,null,null,null,"=","-","-"]
[null,{"$f":"RIGHT(N989,3)","v":""},{"$f":"MID(N989,1,5)","v":""},{"$f":"MID(N989,1,6)","v":""},"14.10",null,null,null,null,null,null,null,null,null,null,null,"=","-","-"]
[null,null,null,null,"14.11",null,null,null,null,null,null,null,null,null,null,null,"=",{"$f":"IFERROR(P990*Q990,\"-\")","v":"-"},"-"]
[null,null,null,null,"14.12",null,null,null,null,null,null,null,null,null,null,null,"=","-","-"]
[null,null,null,null,"14.13",null,null,null,null,null,null,null,null,null,null,null,"=","-","-"]
[null,null,null,null,"14.14",null,null,null,null,null,null,null,null,null,null,null,"=","-","-"]
[null,null,null,null,"14.15",null,null,null,null,null,null,null,null,null,null,null,"=","-","-"]
[null,null,null,null,"14.16",null,null,null,null,null,null,null,null,null,null,null,"=","-","-"]
[null,null,null,null,"14.17",null,null,null,null,null,null,null,null,null,null,null,"=","-","-"]
[null,null,null,null,"14.18",null,null,null,null,null,null,null,null,null,null,null,"=","-","-"]
[null,null,null,null,"14.19",null,null,null,null,null,null,null,null,null,null,null,"=","-","-"]
[null,null,null,null,"14.20",null,null,null,null,null,null,null,null,null,null,null,"=","-","-"]
[null,null,null,null,"14.21",null,null,null,null,null,null,null,null,null,null,null,"=","-","-"]
[null,null,null,null,"14.22",null,null,null,null,null,null,null,null,null,null,null,"=","-","-"]
[null,null,null,null,"14.23",null,null,null,null,null,null,null,null,null,null,null,"=","-","-"]
[null,null,null,null,"14.24",null,null,null,null,null,null,null,null,null,null,null,"=","-","-"]
[null,null,null,null,"14.25",null,null,null,null,null,null,null,null,null,null,null,"=","-","-"]
[null,null,null,null,"14.26",null,null,null,null,null,null,null,null,null,null,null,"=","-","-"]
[null,null,null,null,"14.27",null,null,null,null,null,null,null,null,null,null,null,"=","-","-"]
[null,null,null,null,"14.28",null,null,null,null,null,null,null,null,null,null,null,"=","-","-"]
[null,null,null,null,"14.29",null,null,null,null,null,null,null,null,null,null,null,"=","-","-"]
[null,null,null,null,"14.30",null,null,null,null,null,null,null,null,null,null,null,"=","-","-"]
[null,null,null,null,null,"Составил:","мастер",null,null,null,null,null,"Итого руб",{"$f":"SUM(R11:R1009)","v":0},null,null,{"$f":"0","v":0},null,"**"]
[null,null,null,null,null,"Проверил:","начальник участка",null,null,null,null,null,null,null,null,null,"=",null,"**"]
[null,null,null,null,null,"Согласовано:","гл. инженер",null,null,null,null,null,null,null,null,null,"=",null,"**"]
[null,null,null,null,null,null,"начальник ПТО",null,null,null,null,null,null,null,null,null,"=",null,"**"]
[null,null,null,null,null,null,"начальник ОТ и ТБ",null,null,null,null,null,null,null,null,null,"=",null,"**"]
[null,null,null,null,null,null,"механик",null,null,null,null,null,null,null,null,null,"=",null,"**"]
[null,null,null,null,null,null,"энергетик",null,null,null,null,null,null,null,null,null,"=",null,"**"]
[null,null,null,null,null,null,null,null,null,null,null,null,null,null,null,null,"="]
[null,null,null,null,null,null,null,null,null,null,null,null,null,null,null,null,"="]
[null,null,null,null,null,null,null,null,null,null,null,null,null,null,null,null,"="]
[null,null,null,null,null,null,null,null,null,null,null,null,null,null,null,null,"="]
[null,null,null,null,null,null,null,null,null,null,null,null,null,null,null,null,"="]
[null,null,null,null,null,null,null,null,null,null,null,null,null,null,null,null,"="]
[null,null,null,null,null,null,null,null,null,null,null,null,null,null,null,null,"="]
[null,null,null,null,null,null,null,null,null,null,null,null,null,null,null,null,"="]
[null,null,null,null,null,null,null,null,null,null,null,null,null,null,null,null,"="]
[null,null,null,null,null,null,null,null,null,null,null,null,null,null,null,null,"="]
[null,null,null,null,null,null,null,null,null,null,null,null,null,null,null,null,"="]
[null,null,null,null,null,null,null,null,null,null,null,null,null,null,null,null,"="]
[null,null,null,null,null,null,null,null,null,null,null,null,null,null,null,null,"="]
[null,null,null,null,null,null,null,null,null,null,null,null,null,null,null,null,"="]
[null,null,null,null,null,null,null,null,null,null,null,null,null,null,null,null,"="]
[null,null,null,null,null,null,null,null,null,null,null,null,null,null,null,null,"="]
[null,null,null,null,null,null,null,null,null,null,null,null,null,null,null,null,"="]
[null,null,null,null,null,null,null,null,null,null,null,null,null,null,null,null,"="]
[null,null,null,null,null,null,null,null,null,null,null,null,null,null,null,null,"="]
[null,null,null,null,null,null,null,null,null,null,null,null,null,null,null,null,"="]
[null,null,null,null,null,null,null,null,null,null,null,null,null,null,null,null,"="]
[null,null,null,null,null,null,null,null,null,null,null,null,null,null,null,null,"="]
[null,null,null,null,null,null,null,null,null,null,null,null,null,null,null,null,"="]
[null,null,null,null,null,null,null,null,null,null,null,null,null,null,null,null,"="]
[null,null,null,null,null,null,null,null,null,null,null,null,null,null,null,null,"="]
[null,null,null,null,null,null,null,null,null,null,null,null,null,null,null,null,"="]
[null,null,null,null,null,null,null,null,null,null,null,null,null,null,null,null,"="]
[null,null,null,null,null,null,null,null,null,null,null,null,null,null,null,null,"="]
[null,null,null,null,null,null,null,null,null,null,null,null,null,null,null,null,"="]
[null,null,null,null,null,null,null,null,null,null,null,null,null,null,null,null,"="]
[null,null,null,null,null,null,null,null,null,null,null,null,null,null,null,null,"="]
[null,null,null,null,null,null,null,null,null,null,null,null,null,null,null,null,"="]
[null,null,null,null,null,null,null,null,null,null,null,null,null,null,null,null,"="]
[null,null,null,null,null,null,null,null,null,null,null,null,null,null,null,null,"="]
[null,null,null,null,null,null,null,null,null,null,null,null,null,null,null,null,"="]
[null,null,null,null,null,null,null,null,null,null,null,null,null,null,null,null,"="]
[null,null,null,null,null,null,null,null,null,null,null,null,null,null,null,null,"="]
[null,null,null,null,null,null,null,null,null,null,null,null,null,null,null,null,"="]
[null,null,null,null,null,null,null,null,null,null,null,null,null,null,null,null,"="]
[null,null,null,null,null,null,null,null,null,null,null,null,null,null,null,null,"="]
[null,null,null,null,null,null,null,null,null,null,null,null,null,null,null,null,"="]
[null,null,null,null,null,null,null,null,null,null,null,null,null,null,null,null,"="]
[null,null,null,null,null,null,null,null,null,null,null,null,null,null,null,null,"="]
[null,null,null,null,null,null,null,null,null,null,null,null,null,null,null,null,"="]
[null,null,null,null,null,null,null,null,null,null,null,null,null,null,null,null,"="]
[null,null,null,null,null,null,null,null,null,null,null,null,null,null,null,null,"="]
[null,null,null,null,null,null,null,null,null,null,null,null,null,null,null,null,"="]
[null,null,null,null,null,null,null,null,null,null,null,null,null,null,null,null,"="]
[null,null,null,null,null,null,null,null,null,null,null,null,null,null,null,null,"="]
[null,null,null,null,null,null,null,null,null,null,null,null,null,null,null,null,"="]
[null,null,null,null,null,null,null,null,null,null,null,null,null,null,null,null,"="]
[null,null,null,null,null,null,null,null,null,null,null,null,null,null,null,null,"="]
[null,null,null,null,null,null,null,null,null,null,null,null,null,null,null,null,"="]
[null,null,null,null,null,null,null,null,null,null,null,null,null,null,null,null,"="]
[null,null,null,null,null,null,null,null,null,null,null,null,null,null,null,null,"="]
[null,null,null,null,null,null,null,null,null,null,null,null,null,null,null,null,"="]
[null,null,null,null,null,null,null,null,null,null,null,null,null,null,null,null,"="]
[null,null,null,null,null,null,null,null,null,null,null,null,null,null,null,null,"="]
[null,null,null,null,null,null,null,null,null,null,null,null,null,null,null,null,"="]
[null,null,null,null,null,null,null,null,null,null,null,null,null,null,null,null,"="]
[null,null,null,null,null,null,null,null,null,null,null,null,null,null,null,null,"="]
[null,null,null,null,null,null,null,null,null,null,null,null,null,null,null,null,"="]
[null,null,null,null,null,null,null,null,null,null,null,null,null,null,null,null,"="]
[null,null,null,null,null,null,null,null,null,null,null,null,null,null,null,null,"="]
[null,null,null,null,null,null,null,null,null,null,null,null,null,null,null,null,"="]
[null,null,null,null,null,null,null,null,null,null,null,null,null,null,null,null,"="]
[null,null,null,null,null,null,null,null,null,null,null,null,null,null,null,null,"="]
[null,null,null,null,null,null,null,null,null,null,null,null,null,null,null,null,"="]
[null,null,null,null,null,null,null,null,null,null,null,null,null,null,null,null,"="]